Workbook

Sheet Règlement
B2: CONCOURS "EURO 2016"
B3: Solution "clé en main" pour votre concours de pronostics Euro 2016. Pour tous renseignements :
B4: La version présentée dans le présent document est une version provisoire, qui sera mise à jour avant le début de la compétition.
B6: OBJET DU CONCOURS
B8: Le concours "Pronostics Euro 2016" est un jeu permettant à ses participants de pronostiquer les résultats du Championnat d'Europe des Nations UEFA 2016.
B9: Les participants devront valider plusieurs étapes - définies ci après - pour gagner un maximum de points.
B10: Le classement des participants sera mis à jour quotidiennement pendant la période de la compétition (du 10/06 au 10/07/2016).
B13: DESCRIPTION DES PHASES DE JEU
B15: Le concours est divisé en plusieurs étapes.
B17: Phase 1 : | C17: Avant le début de la compétition (le 10/06), les participants devront pronostiquer le résultat des 36 matchs de Poule. (Onglet "Matchs")
C18: Pour chacun des 36 matchs, des cotes sont proposées. Ces cotes ont été définies par le site de pari Unibet (tronquées à la première décimale).
C19: Les cotes sont également consultables sur le lien suivant http://www.cotes.fr/football/Euro-2016-ed251
C20: Les cotes ont été relevées sur ce site en date du 31/05/2016. Elles sont fixes et ne seront plus modifiées.
C21: Le barême des points appliqué à chacun des 36 matchs de Poule est le suivant :
C22: - en cas de bon pronostic sans le score, le joueur gagnera (3 * la cote du pronostic) points
C23: - en cas de bon pronostic avec le score exact, le joueur gagnera (5 * la cote du pronostic) points
C24: - dans les autres cas, le joueur gagnera 0 point
C26: Simulation avec le match FRANCE - ROUMANIE
C27: Les cotes sont de 1.4 pour une victoire de la France ; 8.0 pour une victoire de la Roumanie ; de 4.2 pour un match nul
C28: Dans l'exemple 1, la France s'impose 1-0.
D29: A l'issue de la rencontre, tous les joueurs ayant pronostiqué une victoire de la France sur le score de 1-0 marquent 5*1.4 , soit 7.0 points.
D30: Tous les joueurs ayant pronostiqué une victoire de la France sur un score différent de 1-0 marquent 3*1.4 , soit 4.2 points
D31: Tous les joueurs ayant pronostiqué une victoire de la Roumanie ou un match nul marquent 0 point.
C32: Dans l'exemple 2, la Roumanie s'impose 1-0.
D33: A l'issue de la rencontre, tous les joueurs ayant pronostiqué une victoire de la Roumanie sur le score de 1-0 marquent 5*8.0 , soit 40.0 points.
D34: Tous les joueurs ayant pronostiqué une victoire de la Roumanie sur un score différent de 1-0 marquent 3*8.0 , soit 24.0 points
D35: Tous les joueurs ayant pronostiqué une victoire de la France ou un match nul marquent 0 point.
C37: Date limite du pronostic : le 10/06/2016
C39: Avant le début de la compétition (le 10/06), les participants devront pronostiquer le tableau final de la compétition (uniquement le qualifié pour chaque match). (Onglet "Matchs")
C41: - HUITIEMES DE FINALE | E41: La saisie des résultats des 36 matchs de poule (étape 1) génère automatiquement la constitution des huitièmes de finale
E42: Pour chaque huitième de finaliste trouvé, le joueur marque (5 * la cote de qualification en 8ème) points
E43: Exemples : | F43: la qualification de la France en 8ème rapportera (5 * 1,0) points à ceux qui l'ont pronostiquée, soit 5.0 points
F44: la qualification de la Roumanie en 8ème rapportera (5 * 1,8) points à ceux qui l'ont pronostiquée, soit 9.0 points
C46: - QUARTS DE FINALE | E46: Le participant sélectionne les 8 équipes qu'il pense voir se qualifier en quarts de finale
E47: pour chaque quart de finaliste trouvé, le joueur marque 12 points
C49: - DEMI-FINALES | E49: Le participant sélectionne les 4 équipes qu'il pense voir se qualifier en demi-finales
E50: pour chaque demi-finaliste trouvé, le joueur marque 20 points
C52: - FINALE | E52: Le participant sélectionne les 2 équipes qu'il pense voir se qualifier en finale
E53: pour chaque finaliste trouvé, le joueur marque 35 points
C55: - VAINQUEUR | E55: Le participant sélectionne l'équipe qu'il pense voir gagner l'Euro
E56: si le joueur trouve le vainqueur de la compétition, il marque 50 points
C58: Date limite du pronostic : le 10/06/2016
B60: Phase 2 : | C60: Lorsque les affiches auront été définies, les participants devront pronostiquer les scores des 8 Huitièmes de Finale.
C61: Des cotes seront proposées pour chaque Huitième de Finale.
C62: Les scores à pronostiquer seront les scores à l'issue des 90 minutes, avant éventuelle prolongation. Une cote sera donc également attribuée pour le match nul.
C64: Le barême des points appliqué aux 8 Huitièmes de Finale est le suivant :
C65: - en cas de bon pronostic sans le score, le joueur gagnera (6 * la cote du pronostic) points
C66: - en cas de bon pronostic avec le score exact, le joueur gagnera (10 * la cote du pronostic) points
C67: - dans les autres cas, le joueur gagnera 0 point
C69: Il est de la responsabilité de chaque participant de bien veiller à transmettre ses pronostics à temps.
C70: En cas de non réception du pronostic à temps, les matchs non pronostiqués rapporteront 0 point aux participants concernés.
C72: Date limite du pronostic : le 25/06/2016
B74: Phase 3 : | C74: Lorsque les affiches auront été définies, les participants devront pronostiquer les scores des 4 Quarts de Finale.
C75: Des cotes seront proposées pour chaque Quart de Finale.
C76: Les scores à pronostiquer seront les scores à l'issue des 90 minutes, avant éventuelle prolongation. Une cote sera donc également attribuée pour le match nul.
C78: Le barême des points appliqué est identique à celui de l'Etape 3
C80: Il est de la responsabilité de chaque participant de bien veiller à transmettre ses pronostics à temps.
C81: En cas de non réception du pronostic à temps, les matchs non pronostiqués rapporteront 0 point aux participants concernés.
C83: Date limite du pronostic : le 30/06/2016
B85: Phase 4 : | C85: Lorsque les affiches auront été définies, les participants devront pronostiquer les scores des 2 Demi-Finales.
C86: Des cotes seront proposées pour chaque Demi-Finale.
C87: Les scores à pronostiquer seront les scores à l'issue des 90 minutes, avant éventuelle prolongation. Une cote sera donc également attribuée pour le match nul.
C89: Le barême des points appliqué est identique à celui de l'Etape 3
C91: Il est de la responsabilité de chaque participant de bien veiller à transmettre ses pronostics à temps.
C92: En cas de non réception du pronostic à temps, les matchs non pronostiqués rapporteront 0 point aux participants concernés.
C94: Date limite du pronostic : le 06/07/2016
B96: Phase 5 : | C96: Lorsque les affiches auront été définies, les participants devront pronostiquer le score de la finale, ainsi que le score du match de classement pour la troisième place
C97: Des cotes seront proposées pour chacun de ces deux matchs.
C98: Les scores à pronostiquer seront les scores à l'issue des 90 minutes, avant éventuelle prolongation. Une cote sera donc également attribuée pour le match nul.
C100: Le barême des points appliqué est identique à celui de l'Etape 3
C102: Il est de la responsabilité de chaque participant de bien veiller à transmettre ses pronostics à temps.
C103: En cas de non réception du pronostic à temps, les matchs non pronostiqués rapporteront 0 point aux participants concernés.
C105: Date limite du pronostic : le 10/07/2016

Sheet Matchs
L4: =IF(AND(ISTEXT(H5),ISTEXT(H6),LEN(H5)>0,LEN(H6)>0,LEN(H5)<20,LEN(H65)<20),"OK","[!]") -> [!]
B5: Nom :
B6: Prenom :
A8: N°: | B8: Date et heure | H8: Matchs de poule | L8: COTES (1N2) | CB8: GROUPE A
A10: 1 | B10: 2016-06-10 | C10: 21:00:00 | D10: =IF(AND(I10<>"",J10<>""),1,0) -> 1 | E10: =IF(AND(I10>J10,D10=1),1,0) -> 1 | F10: =IF(AND(I10=J10,D10=1),1,0) -> 0 | G10: =IF(AND(I10<J10,D10=1),1,0) -> 0 | H10: France | I10: 2 | J10: 1 | K10: Roumanie | L10: =Resultats!J6 -> 1.285555556 | M10: =Resultats!K6 -> 4.983333333 | N10: =Resultats!L6 -> 13.44444444 | O10: =IF(AND(I10<>"",J10<>""),1,0) -> 1 | P10: =IF(AND(I10<J10,O10=1),1,0) -> 0 | Q10: =IF(AND(I10=J10,O10=1),1,0) -> 0 | R10: =IF(AND(I10>J10,O10=1),1,0) -> 1 | Y10: Poule A | Z10: PTS | AA10: J | AB10: G | AC10: N | AD10: P | AE10: B+ | AF10: B- | AG10: Diff | AJ10: Class | AL10: PT/Class | AM10: J | AN10: PTS | AO10: G | AP10: N | AQ10: P | AR10: B+ | AS10: B- | AT10: Diff | AU10: Bonus | AV10: Egalité | AW10: 1 | AX10: 2 | AY10: 3 | AZ10: 4 | BA10: Bonus | BB10: Egalite 1 | BC10: Egalite 2 | BD10: 1 | BE10: 2 | BF10: 3 | BG10: 4 | BH10: COTES QUALIF 8ème | CB10: 42531 | CC10: 0.875 | CD10: 1 | CE10: 1 | CF10: 0 | CG10: 0 | CH10: France | CI10: 2 | CJ10: 1 | CK10: Roumanie
A11: 2 | B11: 2016-06-11 | C11: 15:00:00 | D11: 1 | E11: 0 | F11: 0 | G11: 1 | H11: Albanie | I11: 0 | J11: 1 | K11: Suisse | L11: =Resultats!J7 -> 5.511111111 | M11: =Resultats!K7 -> 3.327777778 | N11: =Resultats!L7 -> 1.74 | O11: 1 | P11: 1 | Q11: 0 | R11: 0 | X11: 1 | Y11: =VLOOKUP(X11,AJ11:AT14,2,FALSE) -> France | Z11: =(3*AB11)+AC11 -> 7 | AA11: =SUM(AB11:AD11) -> 3 | AB11: =VLOOKUP(X11,AJ11:AT14,6,FALSE) -> 2 | AC11: =VLOOKUP(X11,AJ11:AT14,7,FALSE) -> 1 | AD11: =VLOOKUP(X11,AJ11:AT14,8,FALSE) -> 0 | AE11: =VLOOKUP(X11,AJ11:AT14,9,FALSE) -> 4 | AF11: =VLOOKUP(X11,AJ11:AT14,10,FALSE) -> 1 | AG11: =AE11-AF11 -> 3 | AI11: 1 | AJ11: =RANK(AL11,AL11:AL14) -> 1 | AK11: =H10 -> France | AL11: =(AN11*1000000000)+((AU11+BA11)*100000)+(AT11*1000)+(AR11*10)-AI11 -> 7000003039 | AM11: =D10+D13+O14 -> 3 | AN11: =(3*AO11)+AP11 -> 7 | AO11: =COUNTIFS(PaysR,AK11,VpaysR,"1")+ COUNTIFS(PaysV,AK11,VpaysV,"1") -> 2 | AP11: =COUNTIFS(PaysR,AK11,NpaysR,"1")+ COUNTIFS(PaysV,AK11,NpaysV,"1") -> 1 | AQ11: =COUNTIFS(PaysR,AK11,DpaysR,"1")+ COUNTIFS(PaysV,AK11,DpaysV,"1") -> 0 | AR11: =SUMIFS(BpaysR,PaysR,AK11)+SUMIFS(BpaysV,PaysV,AK11) -> 4 | AS11: =SUMIFS(BpaysV,PaysR,AK11)+SUMIFS(BpaysR,PaysV,AK11) -> 1 | AT11: =AR11-AS11 -> 3 | AU11: =IF(AND(AV11<>"",COUNTIF(AW11:AZ11,AV11)=1),1000,0) -> 0 | AV11: =IF(COUNTIF(AN11:AN14,AN11)=2,IF(AN11=AN12,AI12,IF(AN11=AN13,AI13,IF(AN11=AN14,AI14,""))),"") ->  | AX11: =IF($CI$10>$CJ$10,2,"") -> 2 | AY11: =IF($CI$13>$CJ$13,3,"") -> 3 | AZ11: =IF($CJ$14>$CI$14,4,"") ->  | BA11: =SUM(BD11:BG11) -> 0 | BB11: =IF(COUNTIF(AN11:AN14,AN11)=3,IF(AN11=AN12,AI12,AI13),"") ->  | BC11: =IF(COUNTIF(AN11:AN14,AN11)=3,IF(AN11=AN14,AI14,AI13),"") ->  | BE11: =IF(COUNTIF(BB11:BC11,BE10)=1,1000*($CI$10-$CJ$10)+10*$CI$10,"") ->  | BF11: =IF(COUNTIF(BB11:BC11,BF10)=1,1000*($CI$12-$CJ$12)+10*$CI$12,"") ->  | BG11: =IF(COUNTIF(BB11:BC11,BG10)=1,1000*($CJ$14-$CI$14)+10*$CJ$14,"") ->  | BH11: =AK11 -> France | BJ11: 1 | CB11: 42532 | CC11: 0.625 | CD11: 1 | CE11: 1 | CF11: 0 | CG11: 0 | CH11: Albanie | CI11: 0 | CJ11: 1 | CK11: Suisse
A12: 3 | B12: 2016-06-11 | C12: 18:00:00 | D12: 1 | E12: 1 | F12: 0 | G12: 0 | H12: Pays de Galles | I12: 2 | J12: 1 | K12: Slovaquie | L12: =Resultats!J8 -> 2.651111111 | M12: =Resultats!K8 -> 2.983333333 | N12: =Resultats!L8 -> 2.888888889 | O12: 1 | P12: 0 | Q12: 0 | R12: 1 | X12: 2 | Y12: =VLOOKUP(X12,AJ11:AT14,2,FALSE) -> Suisse | Z12: =(3*AB12)+AC12 -> 5 | AA12: =SUM(AB12:AD12) -> 3 | AB12: =VLOOKUP(X12,AJ11:AT14,6,FALSE) -> 1 | AC12: =VLOOKUP(X12,AJ11:AT14,7,FALSE) -> 2 | AD12: =VLOOKUP(X12,AJ11:AT14,8,FALSE) -> 0 | AE12: =VLOOKUP(X12,AJ11:AT14,9,FALSE) -> 2 | AF12: =VLOOKUP(X12,AJ11:AT14,10,FALSE) -> 1 | AG12: =AE12-AF12 -> 1 | AI12: 2 | AJ12: =RANK(AL12,AL11:AL14) -> 4 | AK12: =K10 -> Roumanie | AL12: =(AN12*1000000000)+((AU12+BA12)*100000)+(AT12*1000)+(AR12*10)-AI12 -> 999998018 | AM12: =O10+D12+D15 -> 3 | AN12: =(3*AO12)+AP12 -> 1 | AO12: =COUNTIFS(PaysR,AK12,VpaysR,"1")+ COUNTIFS(PaysV,AK12,VpaysV,"1") -> 0 | AP12: =COUNTIFS(PaysR,AK12,NpaysR,"1")+ COUNTIFS(PaysV,AK12,NpaysV,"1") -> 1 | AQ12: =COUNTIFS(PaysR,AK12,DpaysR,"1")+ COUNTIFS(PaysV,AK12,DpaysV,"1") -> 2 | AR12: =SUMIFS(BpaysR,PaysR,AK12)+SUMIFS(BpaysV,PaysV,AK12) -> 2 | AS12: =SUMIFS(BpaysV,PaysR,AK12)+SUMIFS(BpaysR,PaysV,AK12) -> 4 | AT12: =AR12-AS12 -> -2 | AU12: =IF(AND(AV12<>"",COUNTIF(AW12:AZ12,AV12)=1),1000,0) -> 0 | AV12: =IF(COUNTIF(AN11:AN14,AN12)=2,IF(AN12=AN11,AI11,IF(AN12=AN13,AI13,IF(AN12=AN14,AI14,""))),"") ->  | AW12: =IF($CJ$10>$CI$10,1,"") ->  | AY12: =IF($CI$15>$CJ$15,3,"") ->  | AZ12: =IF($CI$12>$CJ$12,4,"") ->  | BA12: =SUM(BD12:BG12) -> 0 | BB12: =IF(COUNTIF(AN11:AN14,AN12)=3,IF(AN12=AN11,AI11,AI13),"") ->  | BC12: =IF(COUNTIF(AN11:AN14,AN12)=3,IF(AN12=AN14,AI14,AI13),"") ->  | BD12: =IF(COUNTIF(BB12:BC12,BD10)=1,1000*($CJ$10-$CI$10)+10*$CJ$10,"") ->  | BF12: =IF(COUNTIF(BB12:BC12,BF10)=1,1000*($CI$15-$CJ$15)+10*$CI$15,"") ->  | BG12: =IF(COUNTIF(BB12:BC12,BG10)=1,1000*($CJ$13-$CI$13)+10*$CJ$13,"") ->  | BH12: =AK12 -> Roumanie | BJ12: 1.8 | CB12: 42536 | CC12: 0.75 | CD12: 1 | CE12: 1 | CF12: 0 | CG12: 0 | CH12: Roumanie | CI12: 1 | CJ12: 1 | CK12: Suisse
A13: 4 | B13: 2016-06-11 | C13: 21:00:00 | D13: 1 | E13: 0 | F13: 1 | G13: 0 | H13: Angleterre | I13: 1 | J13: 1 | K13: Russie | L13: =Resultats!J9 -> 1.875555556 | M13: =Resultats!K9 -> 3.3 | N13: =Resultats!L9 -> 4.492222222 | O13: 1 | P13: 0 | Q13: 1 | R13: 0 | X13: 3 | Y13: =VLOOKUP(X13,AJ11:AT14,2,FALSE) -> Albanie | Z13: =(3*AB13)+AC13 -> 3 | AA13: =SUM(AB13:AD13) -> 3 | AB13: =VLOOKUP(X13,AJ11:AT14,6,FALSE) -> 1 | AC13: =VLOOKUP(X13,AJ11:AT14,7,FALSE) -> 0 | AD13: =VLOOKUP(X13,AJ11:AT14,8,FALSE) -> 2 | AE13: =VLOOKUP(X13,AJ11:AT14,9,FALSE) -> 1 | AF13: =VLOOKUP(X13,AJ11:AT14,10,FALSE) -> 3 | AG13: =AE13-AF13 -> -2 | AI13: 3 | AJ13: =RANK(AL13,AL11:AL14) -> 3 | AK13: =H11 -> Albanie | AL13: 2999998007 | AM13: =D11+O13+O15 -> 3 | AN13: =(3*AO13)+AP13 -> 3 | AO13: =COUNTIFS(PaysR,AK13,VpaysR,"1")+ COUNTIFS(PaysV,AK13,VpaysV,"1") -> 1 | AP13: =COUNTIFS(PaysR,AK13,NpaysR,"1")+ COUNTIFS(PaysV,AK13,NpaysV,"1") -> 0 | AQ13: =COUNTIFS(PaysR,AK13,DpaysR,"1")+ COUNTIFS(PaysV,AK13,DpaysV,"1") -> 2 | AR13: =SUMIFS(BpaysR,PaysR,AK13)+SUMIFS(BpaysV,PaysV,AK13) -> 1 | AS13: =SUMIFS(BpaysV,PaysR,AK13)+SUMIFS(BpaysR,PaysV,AK13) -> 3 | AT13: =AR13-AS13 -> -2 | AU13: 0 | AV13: =IF(COUNTIF(AN11:AN14,AN13)=2,IF(AN13=AN11,AI11,IF(AN13=AN12,AI12,IF(AN13=AN14,AI14,""))),"") ->  | AW13: =IF($CJ$13>$CI$13,1,"") ->  | AX13: =IF($CJ$15>$CI$15,2,"") -> 2 | AZ13: =IF($CI$11>$CJ$11,4,"") ->  | BA13: =SUM(BD13:BG13) -> 0 | BB13: =IF(COUNTIF(AN11:AN14,AN13)=3,IF(AN13=AN11,AI11,AI12),"") ->  | BC13: =IF(COUNTIF(AN11:AN14,AN13)=3,IF(AN13=AN14,AI14,AI12),"") ->  | BD13: =IF(COUNTIF(BB13:BC13,BD10)=1,1000*($CJ$12-$CI$12)+10*$CJ$12,"") ->  | BE13: =IF(COUNTIF(BB13:BC13,BE10)=1,1000*($CJ$15-$CI$15)+10*$CJ$15,"") ->  | BG13: =IF(COUNTIF(BB13:BC13,BG10)=1,1000*($CI$11-$CJ$11)+10*$CI$11,"") ->  | BH13: =AK13 -> Albanie | BJ13: 1.9 | CB13: 42536 | CC13: 0.875 | CD13: 1 | CE13: 0 | CF13: 1 | CG13: 0 | CH13: France | CI13: 2 | CJ13: 0 | CK13: Albanie
A14: 5 | B14: 2016-06-12 | C14: 15:00:00 | D14: 1 | E14: 0 | F14: 0 | G14: 1 | H14: Turquie | I14: 0 | J14: 1 | K14: Croatie | L14: =Resultats!J10 -> 3.533333333 | M14: =Resultats!K10 -> 3.172222222 | N14: =Resultats!L10 -> 2.166666667 | O14: 1 | P14: 1 | Q14: 0 | R14: 0 | X14: 4 | Y14: =VLOOKUP(X14,AJ11:AT14,2,FALSE) -> Roumanie | Z14: =(3*AB14)+AC14 -> 1 | AA14: =SUM(AB14:AD14) -> 3 | AB14: =VLOOKUP(X14,AJ11:AT14,6,FALSE) -> 0 | AC14: =VLOOKUP(X14,AJ11:AT14,7,FALSE) -> 1 | AD14: =VLOOKUP(X14,AJ11:AT14,8,FALSE) -> 2 | AE14: =VLOOKUP(X14,AJ11:AT14,9,FALSE) -> 2 | AF14: =VLOOKUP(X14,AJ11:AT14,10,FALSE) -> 4 | AG14: =AE14-AF14 -> -2 | AI14: 4 | AJ14: =RANK(AL14,AL11:AL14) -> 2 | AK14: =K11 -> Suisse | AL14: 5000001016 | AM14: =O11+O12+D14 -> 3 | AN14: =(3*AO14)+AP14 -> 5 | AO14: =COUNTIFS(PaysR,AK14,VpaysR,"1")+ COUNTIFS(PaysV,AK14,VpaysV,"1") -> 1 | AP14: =COUNTIFS(PaysR,AK14,NpaysR,"1")+ COUNTIFS(PaysV,AK14,NpaysV,"1") -> 2 | AQ14: =COUNTIFS(PaysR,AK14,DpaysR,"1")+ COUNTIFS(PaysV,AK14,DpaysV,"1") -> 0 | AR14: =SUMIFS(BpaysR,PaysR,AK14)+SUMIFS(BpaysV,PaysV,AK14) -> 2 | AS14: =SUMIFS(BpaysV,PaysR,AK14)+SUMIFS(BpaysR,PaysV,AK14) -> 1 | AT14: =AR14-AS14 -> 1 | AU14: 0 | AV14: =IF(COUNTIF(AN11:AN14,AN14)=2,IF(AN14=AN11,AI11,IF(AN14=AN12,AI12,IF(AN14=AN13,AI13,""))),"") ->  | AW14: =IF($CI$14>$CJ$14,1,"") ->  | AX14: =IF($CJ$12>$CI$12,2,"") ->  | AY14: =IF($CJ$11>$CI$11,3,"") -> 3 | BA14: =SUM(BD14:BG14) -> 0 | BB14: =IF(COUNTIF(AN11:AN14,AN14)=3,IF(AN14=AN11,AI11,AI12),"") ->  | BC14: =IF(COUNTIF(AN11:AN14,AN14)=3,IF(AN14=AN13,AI13,AI12),"") ->  | BD14: =IF(COUNTIF(BB14:BC14,BD10)=1,1000*($CI$14-$CJ$14)+10*$CI$14,"") ->  | BE14: =IF(COUNTIF(BB14:BC14,BE10)=1,1000*($CI$13-$CJ$13)+10*$CI$13,"") ->  | BF14: =IF(COUNTIF(BB14:BC14,BF10)=1,1000*($CJ$11-$CI$11)+10*$CJ$11,"") ->  | BH14: =AK14 -> Suisse | BJ14: 5 | CB14: 42540 | CC14: 0.875 | CD14: 1 | CE14: 1 | CF14: 0 | CG14: 0 | CH14: Suisse | CI14: 0 | CJ14: 0 | CK14: France
A15: 6 | B15: 2016-06-12 | C15: 18:00:00 | D15: 1 | E15: 1 | F15: 0 | G15: 0 | H15: Pologne | I15: 1 | J15: 0 | K15: Irlande du Nord | L15: =Resultats!J11 -> 1.67 | M15: =Resultats!K11 -> 3.516666667 | N15: =Resultats!L11 -> 5.711111111 | O15: 1 | P15: 0 | Q15: 0 | R15: 1 | CB15: 42540 | CC15: 0.875 | CD15: 1 | CE15: 1 | CF15: 0 | CG15: 0 | CH15: Roumanie | CI15: 0 | CJ15: 1 | CK15: Albanie
A16: 7 | B16: 2016-06-12 | C16: 21:00:00 | D16: 1 | E16: 1 | F16: 0 | G16: 0 | H16: Allemagne | I16: 2 | J16: 0 | K16: Ukraine | L16: =Resultats!J12 -> 1.508888889 | M16: =Resultats!K12 -> 4.111111111 | N16: =Resultats!L12 -> 6.944444444 | O16: =IF(AND(I16<>"",J16<>""),1,0) -> 1 | P16: 0 | Q16: 0 | R16: 1 | Y16: Poule B | Z16: PTS | AA16: J | AB16: G | AC16: N | AD16: P | AE16: B+ | AF16: B- | AG16: Diff | AJ16: Class | AL16: PT/Class | AM16: J | AN16: PTS | AO16: G | AP16: N | AQ16: P | AR16: B+ | AS16: B- | AT16: Diff | AU16: Bonus | AV16: Egalité | AW16: 1 | AX16: 2 | AY16: 3 | AZ16: 4 | BA16: Bonus | BB16: Egalite 1 | BC16: Egalite 2 | BD16: 1 | BE16: 2 | BF16: 3 | BG16: 4 | BH16: COTES QUALIF 8ème
A17: 8 | B17: 2016-06-13 | C17: 15:00:00 | D17: 1 | E17: 1 | F17: 0 | G17: 0 | H17: Espagne | I17: 1 | J17: 0 | K17: Rép. Tchèque | L17: =Resultats!J13 -> 1.45 | M17: =Resultats!K13 -> 4.044444444 | N17: =Resultats!L13 -> 7.827777778 | O17: 1 | P17: 0 | Q17: 0 | R17: 1 | X17: 1 | Y17: =VLOOKUP(X17,AJ17:AT20,2,FALSE) -> Pays de Galles | Z17: =(3*AB17)+AC17 -> 6 | AA17: =SUM(AB17:AD17) -> 3 | AB17: =VLOOKUP(X17,AJ17:AT20,6,FALSE) -> 2 | AC17: =VLOOKUP(X17,AJ17:AT20,7,FALSE) -> 0 | AD17: =VLOOKUP(X17,AJ17:AT20,8,FALSE) -> 1 | AE17: =VLOOKUP(X17,AJ17:AT20,9,FALSE) -> 6 | AF17: =VLOOKUP(X17,AJ17:AT20,10,FALSE) -> 3 | AG17: =AE17-AF17 -> 3 | AI17: 1 | AJ17: =RANK(AL17,AL17:AL20) -> 2 | AK17: =H13 -> Angleterre | AL17: =(AN17*1000000000)+((AU17+BA17)*100000)+(AT17*1000)+(AR17*100)-AI17 -> 5000001299 | AM17: =D16+D19+O20 -> 3 | AN17: =(3*AO17)+AP17 -> 5 | AO17: =COUNTIFS(PaysR,AK17,VpaysR,"1")+ COUNTIFS(PaysV,AK17,VpaysV,"1") -> 1 | AP17: =COUNTIFS(PaysR,AK17,NpaysR,"1")+ COUNTIFS(PaysV,AK17,NpaysV,"1") -> 2 | AQ17: =COUNTIFS(PaysR,AK17,DpaysR,"1")+ COUNTIFS(PaysV,AK17,DpaysV,"1") -> 0 | AR17: =SUMIFS(BpaysR,PaysR,AK17)+SUMIFS(BpaysV,PaysV,AK17) -> 3 | AS17: =SUMIFS(BpaysV,PaysR,AK17)+SUMIFS(BpaysR,PaysV,AK17) -> 2 | AT17: =AR17-AS17 -> 1 | AU17: =IF(AND(AV17<>"",COUNTIF(AW17:AZ17,AV17)=1),1000,0) -> 0 | AV17: =IF(COUNTIF(AN17:AN20,AN17)=2,IF(AN17=AN18,AI18,IF(AN17=AN19,AI19,IF(AN17=AN20,AI20,""))),"") ->  | AX17: =IF($CI$21>$CJ$21,2,"") ->  | AY17: =IF($CI$24>$CJ$24,3,"") -> 3 | AZ17: =IF($CJ$25>$CI$25,4,"") ->  | BA17: =SUM(BD17:BG17) -> 0 | BB17: =IF(COUNTIF(AN17:AN20,AN17)=3,IF(AN17=AN18,AI18,AI19),"") ->  | BC17: =IF(COUNTIF(AN17:AN20,AN17)=3,IF(AN17=AN20,AI20,AI19),"") ->  | BE17: =IF(COUNTIF(BB17:BC17,BE16)=1,1000*($CI$21-$CJ$21)+10*$CI$21,"") ->  | BF17: =IF(COUNTIF(BB17:BC17,BF16)=1,1000*($CI$23-$CJ$23)+10*$CI$23,"") ->  | BG17: =IF(COUNTIF(BB17:BC17,BG16)=1,1000*($CJ$25-$CI$25)+10*$CJ$25,"") ->  | BH17: =AK17 -> Angleterre | BJ17: 1
A18: 9 | B18: 2016-06-13 | C18: 18:00:00 | D18: 1 | E18: 0 | F18: 1 | G18: 0 | H18: Irlande | I18: 1 | J18: 1 | K18: Suède | L18: =Resultats!J14 -> 3.172222222 | M18: =Resultats!K14 -> 3.044444444 | N18: =Resultats!L14 -> 2.428888889 | O18: 1 | P18: 0 | Q18: 1 | R18: 0 | X18: 2 | Y18: =VLOOKUP(X18,AJ17:AT20,2,FALSE) -> Angleterre | Z18: =(3*AB18)+AC18 -> 5 | AA18: =SUM(AB18:AD18) -> 3 | AB18: =VLOOKUP(X18,AJ17:AT20,6,FALSE) -> 1 | AC18: =VLOOKUP(X18,AJ17:AT20,7,FALSE) -> 2 | AD18: =VLOOKUP(X18,AJ17:AT20,8,FALSE) -> 0 | AE18: =VLOOKUP(X18,AJ17:AT20,9,FALSE) -> 3 | AF18: =VLOOKUP(X18,AJ17:AT20,10,FALSE) -> 2 | AG18: =AE18-AF18 -> 1 | AI18: 2 | AJ18: =RANK(AL18,AL17:AL20) -> 4 | AK18: =K13 -> Russie | AL18: =(AN18*1000000000)+((AU18+BA18)*100000)+(AT18*1000)+(AR18*100)-AI18 -> 999996198 | AM18: =O16+D18+D21 -> 3 | AN18: =(3*AO18)+AP18 -> 1 | AO18: =COUNTIFS(PaysR,AK18,VpaysR,"1")+ COUNTIFS(PaysV,AK18,VpaysV,"1") -> 0 | AP18: =COUNTIFS(PaysR,AK18,NpaysR,"1")+ COUNTIFS(PaysV,AK18,NpaysV,"1") -> 1 | AQ18: =COUNTIFS(PaysR,AK18,DpaysR,"1")+ COUNTIFS(PaysV,AK18,DpaysV,"1") -> 2 | AR18: =SUMIFS(BpaysR,PaysR,AK18)+SUMIFS(BpaysV,PaysV,AK18) -> 2 | AS18: =SUMIFS(BpaysV,PaysR,AK18)+SUMIFS(BpaysR,PaysV,AK18) -> 6 | AT18: =AR18-AS18 -> -4 | AU18: =IF(AND(AV18<>"",COUNTIF(AW18:AZ18,AV18)=1),1000,0) -> 0 | AV18: =IF(COUNTIF(AN17:AN20,AN18)=2,IF(AN18=AN17,AI17,IF(AN18=AN19,AI19,IF(AN18=AN20,AI20,""))),"") ->  | AW18: =IF($CJ$21>$CI$21,1,"") ->  | AY18: =IF($CI$26>$CJ$26,3,"") ->  | AZ18: =IF($CI$23>$CJ$23,4,"") ->  | BA18: =SUM(BD18:BG18) -> 0 | BB18: =IF(COUNTIF(AN17:AN20,AN18)=3,IF(AN18=AN17,AI17,AI19),"") ->  | BC18: =IF(COUNTIF(AN17:AN20,AN18)=3,IF(AN18=AN20,AI20,AI19),"") ->  | BD18: =IF(COUNTIF(BB18:BC18,BD16)=1,1000*($CJ$21-$CI$21)+10*$CJ$21,"") ->  | BF18: =IF(COUNTIF(BB18:BC18,BF16)=1,1000*($CI$26-$CJ$26)+10*$CI$26,"") ->  | BG18: =IF(COUNTIF(BB18:BC18,BG16)=1,1000*($CJ$24-$CI$24)+10*$CJ$24,"") ->  | BH18: =AK18 -> Russie | BJ18: 1.4
A19: 10 | B19: 2016-06-13 | C19: 21:00:00 | D19: 1 | E19: 0 | F19: 0 | G19: 1 | H19: Belgique | I19: 0 | J19: 2 | K19: Italie | L19: =Resultats!J15 -> 2.498888889 | M19: =Resultats!K15 -> 3.055555556 | N19: =Resultats!L15 -> 3.022222222 | O19: 1 | P19: 1 | Q19: 0 | R19: 0 | X19: 3 | Y19: =VLOOKUP(X19,AJ17:AT20,2,FALSE) -> Slovaquie | Z19: =(3*AB19)+AC19 -> 4 | AA19: =SUM(AB19:AD19) -> 3 | AB19: =VLOOKUP(X19,AJ17:AT20,6,FALSE) -> 1 | AC19: =VLOOKUP(X19,AJ17:AT20,7,FALSE) -> 1 | AD19: =VLOOKUP(X19,AJ17:AT20,8,FALSE) -> 1 | AE19: =VLOOKUP(X19,AJ17:AT20,9,FALSE) -> 3 | AF19: =VLOOKUP(X19,AJ17:AT20,10,FALSE) -> 3 | AG19: =AE19-AF19 -> 0 | AI19: 3 | AJ19: =RANK(AL19,AL17:AL20) -> 1 | AK19: =H12 -> Pays de Galles | AL19: =(AN19*1000000000)+((AU19+BA19)*100000)+(AT19*1000)+(AR19*100)-AI19 -> 6000003597 | AM19: =D17+O19+O21 -> 3 | AN19: =(3*AO19)+AP19 -> 6 | AO19: =COUNTIFS(PaysR,AK19,VpaysR,"1")+ COUNTIFS(PaysV,AK19,VpaysV,"1") -> 2 | AP19: =COUNTIFS(PaysR,AK19,NpaysR,"1")+ COUNTIFS(PaysV,AK19,NpaysV,"1") -> 0 | AQ19: =COUNTIFS(PaysR,AK19,DpaysR,"1")+ COUNTIFS(PaysV,AK19,DpaysV,"1") -> 1 | AR19: =SUMIFS(BpaysR,PaysR,AK19)+SUMIFS(BpaysV,PaysV,AK19) -> 6 | AS19: =SUMIFS(BpaysV,PaysR,AK19)+SUMIFS(BpaysR,PaysV,AK19) -> 3 | AT19: =AR19-AS19 -> 3 | AU19: =IF(AND(AV19<>"",COUNTIF(AW19:AZ19,AV19)=1),1000,0) -> 0 | AV19: =IF(COUNTIF(AN17:AN20,AN19)=2,IF(AN19=AN17,AI17,IF(AN19=AN18,AI18,IF(AN19=AN20,AI20,""))),"") ->  | AW19: =IF($CJ$24>$CI$24,1,"") ->  | AX19: =IF($CJ$26>$CI$26,2,"") -> 2 | AZ19: =IF($CI$22>$CJ$22,4,"") -> 4 | BA19: =SUM(BD19:BG19) -> 0 | BB19: =IF(COUNTIF(AN17:AN20,AN19)=3,IF(AN19=AN17,AI17,AI18),"") ->  | BC19: =IF(COUNTIF(AN17:AN20,AN19)=3,IF(AN19=AN20,AI20,AI18),"") ->  | BD19: =IF(COUNTIF(BB19:BC19,BD16)=1,1000*($CJ$23-$CI$23)+10*$CJ$23,"") ->  | BE19: =IF(COUNTIF(BB19:BC19,BE16)=1,1000*($CJ$26-$CI$26)+10*$CJ$26,"") ->  | BG19: =IF(COUNTIF(BB19:BC19,BG16)=1,1000*($CI$22-$CJ$22)+10*$CI$22,"") ->  | BH19: =AK19 -> Pays de Galles | BJ19: 2 | CB19: GROUPE B
A20: 11 | B20: 2016-06-14 | C20: 18:00:00 | D20: 1 | E20: 0 | F20: 0 | G20: 1 | H20: Autriche | I20: 0 | J20: 2 | K20: Hongrie | L20: =Resultats!J16 -> 1.705555556 | M20: =Resultats!K16 -> 3.5 | N20: =Resultats!L16 -> 5.366666667 | O20: 1 | P20: 1 | Q20: 0 | R20: 0 | X20: 4 | Y20: =VLOOKUP(X20,AJ17:AT20,2,FALSE) -> Russie | Z20: =(3*AB20)+AC20 -> 1 | AA20: =SUM(AB20:AD20) -> 3 | AB20: =VLOOKUP(X20,AJ17:AT20,6,FALSE) -> 0 | AC20: =VLOOKUP(X20,AJ17:AT20,7,FALSE) -> 1 | AD20: =VLOOKUP(X20,AJ17:AT20,8,FALSE) -> 2 | AE20: =VLOOKUP(X20,AJ17:AT20,9,FALSE) -> 2 | AF20: =VLOOKUP(X20,AJ17:AT20,10,FALSE) -> 6 | AG20: =AE20-AF20 -> -4 | AI20: 4 | AJ20: =RANK(AL20,AL17:AL20) -> 3 | AK20: =K12 -> Slovaquie | AL20: =(AN20*1000000000)+((AU20+BA20)*100000)+(AT20*1000)+(AR20*100)-AI20 -> 4000000296 | AM20: =O17+O18+D20 -> 3 | AN20: =(3*AO20)+AP20 -> 4 | AO20: =COUNTIFS(PaysR,AK20,VpaysR,"1")+ COUNTIFS(PaysV,AK20,VpaysV,"1") -> 1 | AP20: =COUNTIFS(PaysR,AK20,NpaysR,"1")+ COUNTIFS(PaysV,AK20,NpaysV,"1") -> 1 | AQ20: =COUNTIFS(PaysR,AK20,DpaysR,"1")+ COUNTIFS(PaysV,AK20,DpaysV,"1") -> 1 | AR20: =SUMIFS(BpaysR,PaysR,AK20)+SUMIFS(BpaysV,PaysV,AK20) -> 3 | AS20: =SUMIFS(BpaysV,PaysR,AK20)+SUMIFS(BpaysR,PaysV,AK20) -> 3 | AT20: =AR20-AS20 -> 0 | AU20: 0 | AV20: =IF(COUNTIF(AN17:AN20,AN20)=2,IF(AN20=AN17,AI17,IF(AN20=AN18,AI18,IF(AN20=AN19,AI19,""))),"") ->  | AW20: =IF($CI$25>$CJ$25,1,"") ->  | AX20: =IF($CJ$23>$CI$23,2,"") -> 2 | AY20: =IF($CJ$22>$CI$22,3,"") ->  | BA20: =SUM(BD20:BG20) -> 0 | BB20: =IF(COUNTIF(AN17:AN20,AN20)=3,IF(AN20=AN17,AI17,AI18),"") ->  | BC20: =IF(COUNTIF(AN17:AN20,AN20)=3,IF(AN20=AN19,AI19,AI18),"") ->  | BD20: =IF(COUNTIF(BB20:BC20,BD16)=1,1000*($CI$25-$CJ$25)+10*$CI$25,"") ->  | BE20: =IF(COUNTIF(BB20:BC20,BE16)=1,1000*($CI$24-$CJ$24)+10*$CI$24,"") ->  | BF20: =IF(COUNTIF(BB20:BC20,BF16)=1,1000*($CJ$22-$CI$22)+10*$CJ$22,"") ->  | BH20: =AK20 -> Slovaquie | BJ20: 9
A21: 12 | B21: 2016-06-14 | C21: 21:00:00 | D21: 1 | E21: 0 | F21: 1 | G21: 0 | H21: Portugal | I21: 1 | J21: 1 | K21: Islande | L21: =Resultats!J17 -> 1.62 | M21: =Resultats!K17 -> 3.6 | N21: =Resultats!L17 -> 6.2 | O21: 1 | P21: 0 | Q21: 1 | R21: 0 | CB21: 42532 | CC21: 0.875 | CD21: 1 | CE21: 1 | CF21: 0 | CG21: 0 | CH21: Angleterre | CI21: 1 | CJ21: 1 | CK21: Russie
A22: 13 | B22: 2016-06-15 | C22: 15:00:00 | D22: 1 | E22: 0 | F22: 0 | G22: 1 | H22: Russie | I22: 1 | J22: 2 | K22: Slovaquie | L22: =Resultats!J18 -> 1.944444444 | M22: =Resultats!K18 -> 2 | N22: =Resultats!L18 -> 3 | O22: =IF(AND(I22<>"",J22<>""),1,0) -> 1 | P22: 1 | Q22: 0 | R22: 0 | Y22: Poule C | Z22: PTS | AA22: J | AB22: G | AC22: N | AD22: P | AE22: B+ | AF22: B- | AG22: Diff | AJ22: Class | AL22: PT/Class | AM22: J | AN22: PTS | AO22: G | AP22: N | AQ22: P | AR22: B+ | AS22: B- | AT22: Diff | AU22: Bonus | AV22: Egalité | AW22: 1 | AX22: 2 | AY22: 3 | AZ22: 4 | BA22: Bonus | BB22: Egalite 1 | BC22: Egalite 2 | BD22: 1 | BE22: 2 | BF22: 3 | BG22: 4 | BH22: COTES QUALIF 8ème | CB22: 42532 | CC22: 0.75 | CD22: 1 | CE22: 0 | CF22: 0 | CG22: 1 | CH22: Pays de Galles | CI22: 2 | CJ22: 1 | CK22: Slovaquie
A23: 14 | B23: 2016-06-15 | C23: 18:00:00 | D23: 1 | E23: 0 | F23: 1 | G23: 0 | H23: Roumanie | I23: 1 | J23: 1 | K23: Suisse | L23: =Resultats!J19 -> 3.616049383 | M23: =Resultats!K19 -> 3.219753086 | N23: =Resultats!L19 -> 2.249876543 | O23: 1 | P23: 0 | Q23: 1 | R23: 0 | X23: 1 | Y23: =VLOOKUP(X23,AJ23:AT26,2,FALSE) -> Allemagne | Z23: =(3*AB23)+AC23 -> 7 | AA23: =SUM(AB23:AD23) -> 3 | AB23: =VLOOKUP(X23,AJ23:AT26,6,FALSE) -> 2 | AC23: =VLOOKUP(X23,AJ23:AT26,7,FALSE) -> 1 | AD23: =VLOOKUP(X23,AJ23:AT26,8,FALSE) -> 0 | AE23: =VLOOKUP(X23,AJ23:AT26,9,FALSE) -> 3 | AF23: =VLOOKUP(X23,AJ23:AT26,10,FALSE) -> 0 | AG23: =AE23-AF23 -> 3 | AI23: 1 | AJ23: =RANK(AL23,AL23:AL26) -> 1 | AK23: =H16 -> Allemagne | AL23: =(AN23*1000000000)+((AU23+BA23)*100000)+(AT23*1000)+(AR23*10)-AI23 -> 7000003029 | AM23: =D22+D25+O26 -> 3 | AN23: =(3*AO23)+AP23 -> 7 | AO23: =COUNTIFS(PaysR,AK23,VpaysR,"1")+ COUNTIFS(PaysV,AK23,VpaysV,"1") -> 2 | AP23: =COUNTIFS(PaysR,AK23,NpaysR,"1")+ COUNTIFS(PaysV,AK23,NpaysV,"1") -> 1 | AQ23: =COUNTIFS(PaysR,AK23,DpaysR,"1")+ COUNTIFS(PaysV,AK23,DpaysV,"1") -> 0 | AR23: =SUMIFS(BpaysR,PaysR,AK23)+SUMIFS(BpaysV,PaysV,AK23) -> 3 | AS23: =SUMIFS(BpaysV,PaysR,AK23)+SUMIFS(BpaysR,PaysV,AK23) -> 0 | AT23: =AR23-AS23 -> 3 | AU23: =IF(AND(AV23<>"",COUNTIF(AW23:AZ23,AV23)=1),1000,0) -> 0 | AV23: =IF(COUNTIF(AN23:AN26,AN23)=2,IF(AN23=AN24,AI24,IF(AN23=AN25,AI25,IF(AN23=AN26,AI26,""))),"") -> 3 | AX23: =IF($CI$32>$CJ$32,2,"") -> 2 | AY23: =IF($CI$35>$CJ$35,3,"") ->  | AZ23: =IF($CJ$36>$CI$36,4,"") -> 4 | BA23: =SUM(BD23:BG23) -> 0 | BB23: =IF(COUNTIF(AN23:AN26,AN23)=3,IF(AN23=AN24,AI24,AI25),"") ->  | BC23: =IF(COUNTIF(AN23:AN26,AN23)=3,IF(AN23=AN26,AI26,AI25),"") ->  | BE23: =IF(COUNTIF(BB23:BC23,BE22)=1,1000*($CI$32-$CJ$32)+10*$CI$32,"") ->  | BF23: =IF(COUNTIF(BB23:BC23,BF22)=1,1000*($CI$35-$CJ$35)+10*$CI$35,"") ->  | BG23: =IF(COUNTIF(BB23:BC23,BG22)=1,1000*($CJ$36-$CI$36)+10*$CJ$36,"") ->  | BH23: =AK23 -> Allemagne | BJ23: 1.1 | CB23: 42536 | CC23: 0.625 | CD23: 1 | CE23: 0 | CF23: 1 | CG23: 0 | CH23: Russie | CI23: 1 | CJ23: 2 | CK23: Slovaquie
A24: 15 | B24: 2016-06-15 | C24: 21:00:00 | D24: 1 | E24: 1 | F24: 0 | G24: 0 | H24: France | I24: 2 | J24: 0 | K24: Albanie | L24: =Resultats!J20 -> 1.455116598 | M24: =Resultats!K20 -> 2 | N24: =Resultats!L20 -> 3 | O24: 1 | P24: 0 | Q24: 0 | R24: 1 | X24: 2 | Y24: =VLOOKUP(X24,AJ23:AT26,2,FALSE) -> Pologne | Z24: =(3*AB24)+AC24 -> 7 | AA24: =SUM(AB24:AD24) -> 3 | AB24: =VLOOKUP(X24,AJ23:AT26,6,FALSE) -> 2 | AC24: =VLOOKUP(X24,AJ23:AT26,7,FALSE) -> 1 | AD24: =VLOOKUP(X24,AJ23:AT26,8,FALSE) -> 0 | AE24: =VLOOKUP(X24,AJ23:AT26,9,FALSE) -> 2 | AF24: =VLOOKUP(X24,AJ23:AT26,10,FALSE) -> 0 | AG24: =AE24-AF24 -> 2 | AI24: 2 | AJ24: =RANK(AL24,AL23:AL26) -> 4 | AK24: =K16 -> Ukraine | AL24: =(AN24*1000000000)+((AU24+BA24)*100000)+(AT24*1000)+(AR24*10)-AI24 -> -5002 | AM24: =O22+D24+D27 -> 3 | AN24: =(3*AO24)+AP24 -> 0 | AO24: =COUNTIFS(PaysR,AK24,VpaysR,"1")+ COUNTIFS(PaysV,AK24,VpaysV,"1") -> 0 | AP24: =COUNTIFS(PaysR,AK24,NpaysR,"1")+ COUNTIFS(PaysV,AK24,NpaysV,"1") -> 0 | AQ24: =COUNTIFS(PaysR,AK24,DpaysR,"1")+ COUNTIFS(PaysV,AK24,DpaysV,"1") -> 3 | AR24: =SUMIFS(BpaysR,PaysR,AK24)+SUMIFS(BpaysV,PaysV,AK24) -> 0 | AS24: =SUMIFS(BpaysV,PaysR,AK24)+SUMIFS(BpaysR,PaysV,AK24) -> 5 | AT24: =AR24-AS24 -> -5 | AU24: =IF(AND(AV24<>"",COUNTIF(AW24:AZ24,AV24)=1),1000,0) -> 0 | AV24: =IF(COUNTIF(AN23:AN26,AN24)=2,IF(AN24=AN23,AI23,IF(AN24=AN25,AI25,IF(AN24=AN26,AI26,""))),"") ->  | AW24: =IF($CJ$32>$CI$32,1,"") ->  | AY24: =IF($CI$37>$CJ$37,3,"") ->  | AZ24: =IF($CI$34>$CJ$34,4,"") ->  | BA24: =SUM(BD24:BG24) -> 0 | BB24: =IF(COUNTIF(AN23:AN26,AN24)=3,IF(AN24=AN23,AI23,AI25),"") ->  | BC24: =IF(COUNTIF(AN23:AN26,AN24)=3,IF(AN24=AN26,AI26,AI25),"") ->  | BD24: =IF(COUNTIF(BB24:BC24,BD22)=1,1000*($CJ$32-$CI$32)+10*$CJ$32,"") ->  | BF24: =IF(COUNTIF(BB24:BC24,BF22)=1,1000*($CI$37-$CJ$37)+10*$CI$37,"") ->  | BG24: =IF(COUNTIF(BB24:BC24,BG22)=1,1000*($CI$34-$CJ$34)+10*$CI$34,"") ->  | BH24: =AK24 -> Ukraine | BJ24: 1.7 | CB24: 42537 | CC24: 0.625 | CD24: 1 | CE24: 0 | CF24: 1 | CG24: 0 | CH24: Angleterre | CI24: 2 | CJ24: 1 | CK24: Pays de Galles
A25: 16 | B25: 2016-06-16 | C25: 15:00:00 | D25: 1 | E25: 1 | F25: 0 | G25: 0 | H25: Angleterre | I25: 2 | J25: 1 | K25: Pays de Galles | L25: =Resultats!J19 -> 3.616049383 | M25: =Resultats!K19 -> 3.219753086 | N25: =Resultats!L19 -> 2.249876543 | O25: 1 | P25: 0 | Q25: 0 | R25: 1 | X25: 3 | Y25: =VLOOKUP(X25,AJ23:AT26,2,FALSE) -> Irlande du Nord | Z25: =(3*AB25)+AC25 -> 3 | AA25: =SUM(AB25:AD25) -> 3 | AB25: =VLOOKUP(X25,AJ23:AT26,6,FALSE) -> 1 | AC25: =VLOOKUP(X25,AJ23:AT26,7,FALSE) -> 0 | AD25: =VLOOKUP(X25,AJ23:AT26,8,FALSE) -> 2 | AE25: =VLOOKUP(X25,AJ23:AT26,9,FALSE) -> 2 | AF25: =VLOOKUP(X25,AJ23:AT26,10,FALSE) -> 2 | AG25: =AE25-AF25 -> 0 | AI25: 3 | AJ25: =RANK(AL25,AL23:AL26) -> 2 | AK25: =H15 -> Pologne | AL25: =(AN25*1000000000)+((AU25+BA25)*100000)+(AT25*1000)+(AR25*10)-AI25 -> 7000002017 | AM25: =D23+O25+O27 -> 3 | AN25: =(3*AO25)+AP25 -> 7 | AO25: =COUNTIFS(PaysR,AK25,VpaysR,"1")+ COUNTIFS(PaysV,AK25,VpaysV,"1") -> 2 | AP25: =COUNTIFS(PaysR,AK25,NpaysR,"1")+ COUNTIFS(PaysV,AK25,NpaysV,"1") -> 1 | AQ25: =COUNTIFS(PaysR,AK25,DpaysR,"1")+ COUNTIFS(PaysV,AK25,DpaysV,"1") -> 0 | AR25: =SUMIFS(BpaysR,PaysR,AK25)+SUMIFS(BpaysV,PaysV,AK25) -> 2 | AS25: =SUMIFS(BpaysV,PaysR,AK25)+SUMIFS(BpaysR,PaysV,AK25) -> 0 | AT25: =AR25-AS25 -> 2 | AU25: 0 | AV25: =IF(COUNTIF(AN23:AN26,AN25)=2,IF(AN25=AN23,AI23,IF(AN25=AN24,AI24,IF(AN25=AN26,AI26,""))),"") -> 1 | AW25: =IF($CJ$35>$CI$35,1,"") ->  | AX25: =IF($CJ$37>$CI$37,2,"") -> 2 | AZ25: =IF($CI$33>$CJ$33,4,"") -> 4 | BA25: =SUM(BD25:BG25) -> 0 | BB25: =IF(COUNTIF(AN23:AN26,AN25)=3,IF(AN25=AN23,AI23,AI24),"") ->  | BC25: =IF(COUNTIF(AN23:AN26,AN25)=3,IF(AN25=AN26,AI26,AI24),"") ->  | BD25: =IF(COUNTIF(BB25:BC25,BD22)=1,1000*($CJ$35-$CI$35)+10*$CJ$35,"") ->  | BE25: =IF(COUNTIF(BB25:BC25,BE22)=1,1000*($CJ$37-$CI$37)+10*$CJ$37,"") ->  | BG25: =IF(COUNTIF(BB25:BC25,BG22)=1,1000*($CI$33-$CJ$33)+10*$CI$33,"") ->  | BH25: =AK25 -> Pologne | BJ25: 2 | CB25: 42541 | CC25: 0.875 | CD25: 1 | CE25: 0 | CF25: 1 | CG25: 0 | CH25: Slovaquie | CI25: 0 | CJ25: 0 | CK25: Angleterre
A26: 17 | B26: 2016-06-16 | C26: 18:00:00 | D26: 1 | E26: 0 | F26: 0 | G26: 1 | H26: Ukraine | I26: 0 | J26: 2 | K26: Irlande du Nord | L26: =Resultats!J22 -> 1.714877983 | M26: =Resultats!K22 -> 2 | N26: =Resultats!L22 -> 3 | O26: 1 | P26: 1 | Q26: 0 | R26: 0 | X26: 4 | Y26: =VLOOKUP(X26,AJ23:AT26,2,FALSE) -> Ukraine | Z26: =(3*AB26)+AC26 -> 0 | AA26: =SUM(AB26:AD26) -> 3 | AB26: =VLOOKUP(X26,AJ23:AT26,6,FALSE) -> 0 | AC26: =VLOOKUP(X26,AJ23:AT26,7,FALSE) -> 0 | AD26: =VLOOKUP(X26,AJ23:AT26,8,FALSE) -> 3 | AE26: =VLOOKUP(X26,AJ23:AT26,9,FALSE) -> 0 | AF26: =VLOOKUP(X26,AJ23:AT26,10,FALSE) -> 5 | AG26: =AE26-AF26 -> -5 | AI26: 4 | AJ26: =RANK(AL26,AL23:AL26) -> 3 | AK26: =K15 -> Irlande du Nord | AL26: =(AN26*1000000000)+((AU26+BA26)*100000)+(AT26*1000)+(AR26*10)-AI26 -> 3000000016 | AM26: =O23+O24+D26 -> 3 | AN26: =(3*AO26)+AP26 -> 3 | AO26: =COUNTIFS(PaysR,AK26,VpaysR,"1")+ COUNTIFS(PaysV,AK26,VpaysV,"1") -> 1 | AP26: =COUNTIFS(PaysR,AK26,NpaysR,"1")+ COUNTIFS(PaysV,AK26,NpaysV,"1") -> 0 | AQ26: =COUNTIFS(PaysR,AK26,DpaysR,"1")+ COUNTIFS(PaysV,AK26,DpaysV,"1") -> 2 | AR26: =SUMIFS(BpaysR,PaysR,AK26)+SUMIFS(BpaysV,PaysV,AK26) -> 2 | AS26: =SUMIFS(BpaysV,PaysR,AK26)+SUMIFS(BpaysR,PaysV,AK26) -> 2 | AT26: =AR26-AS26 -> 0 | AU26: 0 | AV26: =IF(COUNTIF(AN23:AN26,AN26)=2,IF(AN26=AN23,AI23,IF(AN26=AN24,AI24,IF(AN26=AN25,AI25,""))),"") ->  | AW26: =IF($CI$36>$CJ$36,1,"") ->  | AX26: =IF($CJ$34>$CI$34,2,"") -> 2 | AY26: =IF($CJ$33>$CI$33,3,"") ->  | BA26: =SUM(BD26:BG26) -> 0 | BB26: =IF(COUNTIF(AN23:AN26,AN26)=3,IF(AN26=AN23,AI23,AI24),"") ->  | BC26: =IF(COUNTIF(AN23:AN26,AN26)=3,IF(AN26=AN25,AI25,AI24),"") ->  | BD26: =IF(COUNTIF(BB26:BC26,BD22)=1,1000*($CI$36-$CJ$36)+10*$CI$36,"") ->  | BE26: =IF(COUNTIF(BB26:BC26,BE22)=1,1000*($CJ$34-$CI$34)+10*$CJ$34,"") ->  | BF26: =IF(COUNTIF(BB26:BC26,BF22)=1,1000*($CJ$33-$CI$33)+10*$CJ$33,"") ->  | BH26: =AK26 -> Irlande du Nord | BJ26: 2.7 | CB26: 42541 | CC26: 0.875 | CD26: 1 | CE26: 1 | CF26: 0 | CG26: 0 | CH26: Russie | CI26: 0 | CJ26: 3 | CK26: Pays de Galles
A27: 18 | B27: 2016-06-16 | C27: 21:00:00 | D27: 1 | E27: 0 | F27: 1 | G27: 0 | H27: Allemagne | I27: 0 | J27: 0 | K27: Pologne | L27: =Resultats!J23 -> 1.576097554 | M27: =Resultats!K23 -> 2 | N27: =Resultats!L23 -> 3 | O27: 1 | P27: 0 | Q27: 1 | R27: 0
A28: 19 | B28: 2016-06-17 | C28: 15:00:00 | D28: 1 | E28: 1 | F28: 0 | G28: 0 | H28: Italie | I28: 1 | J28: 0 | K28: Suède | L28: =Resultats!J24 -> 1.897344173 | M28: =Resultats!K24 -> 2 | N28: =Resultats!L24 -> 3 | O28: =IF(AND(I28<>"",J28<>""),1,0) -> 1 | P28: 0 | Q28: 0 | R28: 1 | Y28: Poule D | Z28: PTS | AA28: J | AB28: G | AC28: N | AD28: P | AE28: B+ | AF28: B- | AG28: Diff | AJ28: Class | AL28: PT/Class | AM28: J | AN28: PTS | AO28: G | AP28: N | AQ28: P | AR28: B+ | AS28: B- | AT28: Diff | AU28: Bonus | AV28: Egalité | AW28: 1 | AX28: 2 | AY28: 3 | AZ28: 4 | BA28: Bonus | BB28: Egalite 1 | BC28: Egalite 2 | BD28: 1 | BE28: 2 | BF28: 3 | BG28: 4 | BH28: COTES QUALIF 8ème
A29: 20 | B29: 2016-06-17 | C29: 18:00:00 | D29: 1 | E29: 0 | F29: 1 | G29: 0 | H29: Rép. Tchèque | I29: 2 | J29: 2 | K29: Croatie | L29: =Resultats!J25 -> 3.166371575 | M29: =Resultats!K25 -> 3.202357307 | N29: =Resultats!L25 -> 2.415658464 | O29: 1 | P29: 0 | Q29: 1 | R29: 0 | X29: 1 | Y29: =VLOOKUP(X29,AJ29:AT32,2,FALSE) -> Croatie | Z29: =(3*AB29)+AC29 -> 7 | AA29: =SUM(AB29:AD29) -> 3 | AB29: =VLOOKUP(X29,AJ29:AT32,6,FALSE) -> 2 | AC29: =VLOOKUP(X29,AJ29:AT32,7,FALSE) -> 1 | AD29: =VLOOKUP(X29,AJ29:AT32,8,FALSE) -> 0 | AE29: =VLOOKUP(X29,AJ29:AT32,9,FALSE) -> 5 | AF29: =VLOOKUP(X29,AJ29:AT32,10,FALSE) -> 3 | AG29: =AE29-AF29 -> 2 | AI29: 1 | AJ29: =RANK(AL29,AL29:AL32) -> 2 | AK29: =H17 -> Espagne | AL29: =(AN29*1000000000)+((AU29+BA29)*100000)+(AT29*1000)+(AR29*10)-AI29 -> 6000003049 | AM29: =D28+D31+O32 -> 3 | AN29: =(3*AO29)+AP29 -> 6 | AO29: =COUNTIFS(PaysR,AK29,VpaysR,"1")+ COUNTIFS(PaysV,AK29,VpaysV,"1") -> 2 | AP29: =COUNTIFS(PaysR,AK29,NpaysR,"1")+ COUNTIFS(PaysV,AK29,NpaysV,"1") -> 0 | AQ29: =COUNTIFS(PaysR,AK29,DpaysR,"1")+ COUNTIFS(PaysV,AK29,DpaysV,"1") -> 1 | AR29: =SUMIFS(BpaysR,PaysR,AK29)+SUMIFS(BpaysV,PaysV,AK29) -> 5 | AS29: =SUMIFS(BpaysV,PaysR,AK29)+SUMIFS(BpaysR,PaysV,AK29) -> 2 | AT29: =AR29-AS29 -> 3 | AU29: =IF(AND(AV29<>"",COUNTIF(AW29:AZ29,AV29)=1),1000,0) -> 0 | AV29: =IF(COUNTIF(AN29:AN32,AN29)=2,IF(AN29=AN30,AI30,IF(AN29=AN31,AI31,IF(AN29=AN32,AI32,""))),"") ->  | AX29: =IF($CI$43>$CJ$43,2,"") -> 2 | AY29: =IF($CI$46>$CJ$46,3,"") -> 3 | AZ29: =IF($CJ$47>$CI$47,4,"") ->  | BA29: =SUM(BD29:BG29) -> 0 | BB29: =IF(COUNTIF(AN29:AN32,AN29)=3,IF(AN29=AN30,AI30,AI31),"") ->  | BC29: =IF(COUNTIF(AN29:AN32,AN29)=3,IF(AN29=AN32,AI32,AI31),"") ->  | BE29: =IF(COUNTIF(BB29:BC29,BE28)=1,1000*($CI$43-$CJ$43)+10*$CI$43,"") ->  | BF29: =IF(COUNTIF(BB29:BC29,BF28)=1,1000*($CI$45-$CJ$45)+10*$CI$45,"") ->  | BG29: =IF(COUNTIF(BB29:BC29,BG28)=1,1000*($CJ$47-$CI$47)+10*$CJ$47,"") ->  | BH29: =AK29 -> Espagne | BJ29: 1.3
A30: 21 | B30: 2016-06-17 | C30: 21:00:00 | D30: 1 | E30: 1 | F30: 0 | G30: 0 | H30: Espagne | I30: 3 | J30: 0 | K30: Turquie | L30: =Resultats!J26 -> 1.691819064 | M30: =Resultats!K26 -> 2 | N30: =Resultats!L26 -> 3 | O30: =IF(AND(I30<>"",J30<>""),1,0) -> 1 | P30: 0 | Q30: 0 | R30: 1 | X30: 2 | Y30: =VLOOKUP(X30,AJ29:AT32,2,FALSE) -> Espagne | Z30: =(3*AB30)+AC30 -> 6 | AA30: =SUM(AB30:AD30) -> 3 | AB30: =VLOOKUP(X30,AJ29:AT32,6,FALSE) -> 2 | AC30: =VLOOKUP(X30,AJ29:AT32,7,FALSE) -> 0 | AD30: =VLOOKUP(X30,AJ29:AT32,8,FALSE) -> 1 | AE30: =VLOOKUP(X30,AJ29:AT32,9,FALSE) -> 5 | AF30: =VLOOKUP(X30,AJ29:AT32,10,FALSE) -> 2 | AG30: =AE30-AF30 -> 3 | AI30: 2 | AJ30: =RANK(AL30,AL29:AL32) -> 4 | AK30: =K17 -> Rép. Tchèque | AL30: =(AN30*1000000000)+((AU30+BA30)*100000)+(AT30*1000)+(AR30*10)-AI30 -> 999997018 | AM30: =O28+D30+D33 -> 3 | AN30: =(3*AO30)+AP30 -> 1 | AO30: =COUNTIFS(PaysR,AK30,VpaysR,"1")+ COUNTIFS(PaysV,AK30,VpaysV,"1") -> 0 | AP30: =COUNTIFS(PaysR,AK30,NpaysR,"1")+ COUNTIFS(PaysV,AK30,NpaysV,"1") -> 1 | AQ30: =COUNTIFS(PaysR,AK30,DpaysR,"1")+ COUNTIFS(PaysV,AK30,DpaysV,"1") -> 2 | AR30: =SUMIFS(BpaysR,PaysR,AK30)+SUMIFS(BpaysV,PaysV,AK30) -> 2 | AS30: =SUMIFS(BpaysV,PaysR,AK30)+SUMIFS(BpaysR,PaysV,AK30) -> 5 | AT30: =AR30-AS30 -> -3 | AU30: =IF(AND(AV30<>"",COUNTIF(AW30:AZ30,AV30)=1),1000,0) -> 0 | AV30: =IF(COUNTIF(AN29:AN32,AN30)=2,IF(AN30=AN29,AI29,IF(AN30=AN31,AI31,IF(AN30=AN32,AI32,""))),"") ->  | AW30: =IF($CJ$43>$CI$43,1,"") ->  | AY30: =IF($CI$48>$CJ$48,3,"") ->  | AZ30: =IF($CI$45>$CJ$45,4,"") ->  | BA30: =SUM(BD30:BG30) -> 0 | BB30: =IF(COUNTIF(AN29:AN32,AN30)=3,IF(AN30=AN29,AI29,AI31),"") ->  | BC30: =IF(COUNTIF(AN29:AN32,AN30)=3,IF(AN30=AN32,AI32,AI31),"") ->  | BD30: =IF(COUNTIF(BB30:BC30,BD28)=1,1000*($CJ$43-$CI$43)+10*$CJ$43,"") ->  | BF30: =IF(COUNTIF(BB30:BC30,BF28)=1,1000*($CI$48-$CJ$48)+10*$CI$48,"") ->  | BG30: =IF(COUNTIF(BB30:BC30,BG28)=1,1000*($CJ$46-$CI$46)+10*$CJ$46,"") ->  | BH30: =AK30 -> Rép. Tchèque | BJ30: 1.3 | CB30: GROUPE C | CH30: GROUPE C
A31: 22 | B31: 2016-06-18 | C31: 15:00:00 | D31: 1 | E31: 1 | F31: 0 | G31: 0 | H31: Belgique | I31: 3 | J31: 0 | K31: Irlande | L31: =Resultats!J27 -> 1.579091007 | M31: =Resultats!K27 -> 2 | N31: =Resultats!L27 -> 3 | O31: 1 | P31: 0 | Q31: 0 | R31: 1 | X31: 3 | Y31: =VLOOKUP(X31,AJ29:AT32,2,FALSE) -> Turquie | Z31: =(3*AB31)+AC31 -> 3 | AA31: =SUM(AB31:AD31) -> 3 | AB31: =VLOOKUP(X31,AJ29:AT32,6,FALSE) -> 1 | AC31: =VLOOKUP(X31,AJ29:AT32,7,FALSE) -> 0 | AD31: =VLOOKUP(X31,AJ29:AT32,8,FALSE) -> 2 | AE31: =VLOOKUP(X31,AJ29:AT32,9,FALSE) -> 2 | AF31: =VLOOKUP(X31,AJ29:AT32,10,FALSE) -> 4 | AG31: =AE31-AF31 -> -2 | AI31: 3 | AJ31: =RANK(AL31,AL29:AL32) -> 3 | AK31: =H14 -> Turquie | AL31: =(AN31*1000000000)+((AU31+BA31)*100000)+(AT31*1000)+(AR31*10)-AI31 -> 2999998017 | AM31: =D29+O31+O33 -> 3 | AN31: =(3*AO31)+AP31 -> 3 | AO31: =COUNTIFS(PaysR,AK31,VpaysR,"1")+ COUNTIFS(PaysV,AK31,VpaysV,"1") -> 1 | AP31: =COUNTIFS(PaysR,AK31,NpaysR,"1")+ COUNTIFS(PaysV,AK31,NpaysV,"1") -> 0 | AQ31: =COUNTIFS(PaysR,AK31,DpaysR,"1")+ COUNTIFS(PaysV,AK31,DpaysV,"1") -> 2 | AR31: =SUMIFS(BpaysR,PaysR,AK31)+SUMIFS(BpaysV,PaysV,AK31) -> 2 | AS31: =SUMIFS(BpaysV,PaysR,AK31)+SUMIFS(BpaysR,PaysV,AK31) -> 4 | AT31: =AR31-AS31 -> -2 | AU31: 0 | AV31: =IF(COUNTIF(AN29:AN32,AN31)=2,IF(AN31=AN29,AI29,IF(AN31=AN30,AI30,IF(AN31=AN32,AI32,""))),"") ->  | AW31: =IF($CJ$46>$CI$46,1,"") ->  | AX31: =IF($CJ$48>$CI$48,2,"") -> 2 | AZ31: =IF($CI$44>$CJ$44,4,"") ->  | BA31: =SUM(BD31:BG31) -> 0 | BB31: =IF(COUNTIF(AN29:AN32,AN31)=3,IF(AN31=AN29,AI29,AI30),"") ->  | BC31: =IF(COUNTIF(AN29:AN32,AN31)=3,IF(AN31=AN32,AI32,AI30),"") ->  | BD31: =IF(COUNTIF(BB31:BC31,BD28)=1,1000*($CJ$45-$CI$45)+10*$CJ$45,"") ->  | BE31: =IF(COUNTIF(BB31:BC31,BE28)=1,1000*($CJ$48-$CI$48)+10*$CJ$48,"") ->  | BG31: =IF(COUNTIF(BB31:BC31,BG28)=1,1000*($CI$44-$CJ$44)+10*$CI$44,"") ->  | BH31: =AK31 -> Turquie | BJ31: 1.5
A32: 23 | B32: 2016-06-18 | C32: 18:00:00 | D32: 1 | E32: 0 | F32: 1 | G32: 0 | H32: Islande | I32: 1 | J32: 1 | K32: Hongrie | L32: =Resultats!J28 -> 2.209899001 | M32: =Resultats!K28 -> 3.210085538 | N32: =Resultats!L28 -> 3.457634648 | O32: 1 | P32: 0 | Q32: 1 | R32: 0 | X32: 4 | Y32: =VLOOKUP(X32,AJ29:AT32,2,FALSE) -> Rép. Tchèque | Z32: =(3*AB32)+AC32 -> 1 | AA32: =SUM(AB32:AD32) -> 3 | AB32: =VLOOKUP(X32,AJ29:AT32,6,FALSE) -> 0 | AC32: =VLOOKUP(X32,AJ29:AT32,7,FALSE) -> 1 | AD32: =VLOOKUP(X32,AJ29:AT32,8,FALSE) -> 2 | AE32: =VLOOKUP(X32,AJ29:AT32,9,FALSE) -> 2 | AF32: =VLOOKUP(X32,AJ29:AT32,10,FALSE) -> 5 | AG32: =AE32-AF32 -> -3 | AI32: 4 | AJ32: =RANK(AL32,AL29:AL32) -> 1 | AK32: =K14 -> Croatie | AL32: =(AN32*1000000000)+((AU32+BA32)*100000)+(AT32*1000)+(AR32*10)-AI32 -> 7000002046 | AM32: =O29+O30+D32 -> 3 | AN32: =(3*AO32)+AP32 -> 7 | AO32: =COUNTIFS(PaysR,AK32,VpaysR,"1")+ COUNTIFS(PaysV,AK32,VpaysV,"1") -> 2 | AP32: =COUNTIFS(PaysR,AK32,NpaysR,"1")+ COUNTIFS(PaysV,AK32,NpaysV,"1") -> 1 | AQ32: =COUNTIFS(PaysR,AK32,DpaysR,"1")+ COUNTIFS(PaysV,AK32,DpaysV,"1") -> 0 | AR32: =SUMIFS(BpaysR,PaysR,AK32)+SUMIFS(BpaysV,PaysV,AK32) -> 5 | AS32: =SUMIFS(BpaysV,PaysR,AK32)+SUMIFS(BpaysR,PaysV,AK32) -> 3 | AT32: =AR32-AS32 -> 2 | AU32: 0 | AV32: =IF(COUNTIF(AN29:AN32,AN32)=2,IF(AN32=AN29,AI29,IF(AN32=AN30,AI30,IF(AN32=AN31,AI31,""))),"") ->  | AW32: =IF($CI$47>$CJ$47,1,"") -> 1 | AX32: =IF($CJ$45>$CI$45,2,"") ->  | AY32: =IF($CJ$44>$CI$44,3,"") -> 3 | BA32: =SUM(BD32:BG32) -> 0 | BB32: =IF(COUNTIF(AN29:AN32,AN32)=3,IF(AN32=AN29,AI29,AI30),"") ->  | BC32: =IF(COUNTIF(AN29:AN32,AN32)=3,IF(AN32=AN31,AI31,AI30),"") ->  | BD32: =IF(COUNTIF(BB32:BC32,BD28)=1,1000*($CI$47-$CJ$47)+10*$CI$47,"") ->  | BE32: =IF(COUNTIF(BB32:BC32,BE28)=1,1000*($CI$46-$CJ$46)+10*$CI$46,"") ->  | BF32: =IF(COUNTIF(BB32:BC32,BF28)=1,1000*($CJ$44-$CI$44)+10*$CJ$44,"") ->  | BH32: =AK32 -> Croatie | BJ32: 8 | CB32: 42533 | CC32: 0.875 | CD32: 1 | CE32: 1 | CF32: 0 | CG32: 0 | CH32: Allemagne | CI32: 2 | CJ32: 0 | CK32: Ukraine
A33: 24 | B33: 2016-06-18 | C33: 21:00:00 | D33: 1 | E33: 0 | F33: 1 | G33: 0 | H33: Portugal | I33: 0 | J33: 0 | K33: Autriche | L33: =Resultats!J29 -> 2.145544333 | M33: =Resultats!K29 -> 3.251120615 | N33: =Resultats!L29 -> 3.378626072 | O33: 1 | P33: 0 | Q33: 1 | R33: 0 | CB33: 42533 | CC33: 0.75 | CD33: 1 | CE33: 1 | CF33: 0 | CG33: 0 | CH33: Pologne | CI33: 1 | CJ33: 0 | CK33: Irlande du Nord
A34: 25 | B34: 2016-06-19 | C34: 21:00:00 | D34: 1 | E34: 0 | F34: 1 | G34: 0 | H34: Suisse | I34: 0 | J34: 0 | K34: France | L34: =Resultats!J30 -> 3 | M34: =Resultats!K30 -> 2 | N34: =Resultats!L30 -> 1.875538593 | O34: =IF(AND(I34<>"",J34<>""),1,0) -> 1 | P34: 0 | Q34: 1 | R34: 0 | Y34: Poule E | Z34: PTS | AA34: J | AB34: G | AC34: N | AD34: P | AE34: B+ | AF34: B- | AG34: Diff | AJ34: Class | AL34: PT/Class | AM34: J | AN34: PTS | AO34: G | AP34: N | AQ34: P | AR34: B+ | AS34: B- | AT34: Diff | AU34: Bonus | AV34: Egalité | AW34: 1 | AX34: 2 | AY34: 3 | AZ34: 4 | BA34: Bonus | BB34: Egalite 1 | BC34: Egalite 2 | BD34: 1 | BE34: 2 | BF34: 3 | BG34: 4 | BH34: COTES QUALIF 8ème | CB34: 42537 | CC34: 0.75 | CD34: 1 | CE34: 1 | CF34: 0 | CG34: 0 | CH34: Ukraine | CI34: 0 | CJ34: 2 | CK34: Irlande du Nord
A35: 26 | B35: 2016-06-19 | C35: 21:00:00 | D35: 1 | E35: 0 | F35: 0 | G35: 1 | H35: Roumanie | I35: 0 | J35: 1 | K35: Albanie | L35: =Resultats!J31 -> 1.969504926 | M35: =Resultats!K31 -> 3.300124513 | N35: =Resultats!L31 -> 3.819847341 | O35: 1 | P35: 1 | Q35: 0 | R35: 0 | X35: 1 | Y35: =VLOOKUP(X35,AJ35:AT38,2,FALSE) -> Italie | Z35: =(3*AB35)+AC35 -> 6 | AA35: =SUM(AB35:AD35) -> 3 | AB35: =VLOOKUP(X35,AJ35:AT38,6,FALSE) -> 2 | AC35: =VLOOKUP(X35,AJ35:AT38,7,FALSE) -> 0 | AD35: =VLOOKUP(X35,AJ35:AT38,8,FALSE) -> 1 | AE35: =VLOOKUP(X35,AJ35:AT38,9,FALSE) -> 3 | AF35: =VLOOKUP(X35,AJ35:AT38,10,FALSE) -> 1 | AG35: =AE35-AF35 -> 2 | AI35: 1 | AJ35: =RANK(AL35,AL35:AL38) -> 2 | AK35: =H19 -> Belgique | AL35: =(AN35*1000000000)+((AU35+BA35)*100000)+(AT35*1000)+(AR35*10)-AI35 -> 6000002039 | AM35: =D34+D37+O38 -> 3 | AN35: =(3*AO35)+AP35 -> 6 | AO35: =COUNTIFS(PaysR,AK35,VpaysR,"1")+ COUNTIFS(PaysV,AK35,VpaysV,"1") -> 2 | AP35: =COUNTIFS(PaysR,AK35,NpaysR,"1")+ COUNTIFS(PaysV,AK35,NpaysV,"1") -> 0 | AQ35: =COUNTIFS(PaysR,AK35,DpaysR,"1")+ COUNTIFS(PaysV,AK35,DpaysV,"1") -> 1 | AR35: =SUMIFS(BpaysR,PaysR,AK35)+SUMIFS(BpaysV,PaysV,AK35) -> 4 | AS35: =SUMIFS(BpaysV,PaysR,AK35)+SUMIFS(BpaysR,PaysV,AK35) -> 2 | AT35: =AR35-AS35 -> 2 | AU35: =IF(AND(AV35<>"",COUNTIF(AW35:AZ35,AV35)=1),1000,0) -> 0 | AV35: =IF(COUNTIF(AN35:AN38,AN35)=2,IF(AN35=AN36,AI36,IF(AN35=AN37,AI37,IF(AN35=AN38,AI38,""))),"") -> 2 | AX35: =IF($CI$54>$CJ$54,2,"") ->  | AY35: =IF($CI$57>$CJ$57,3,"") -> 3 | AZ35: =IF($CJ$58>$CI$58,4,"") -> 4 | BA35: =SUM(BD35:BG35) -> 0 | BB35: =IF(COUNTIF(AN35:AN38,AN35)=3,IF(AN35=AN36,AI36,AI37),"") ->  | BC35: =IF(COUNTIF(AN35:AN38,AN35)=3,IF(AN35=AN38,AI38,AI37),"") ->  | BE35: =IF(COUNTIF(BB35:BC35,BE34)=1,1000*($CI$54-$CJ$54)+10*$CI$54,"") ->  | BF35: =IF(COUNTIF(BB35:BC35,BF34)=1,1000*($CI$56-$CJ$56)+10*$CI$56,"") ->  | BG35: =IF(COUNTIF(BB35:BC35,BG34)=1,1000*($CJ$58-$CI$58)+10*$CJ$58,"") ->  | BH35: =AK35 -> Belgique | BJ35: 1.1 | CB35: 42537 | CC35: 0.875 | CD35: 1 | CE35: 1 | CF35: 0 | CG35: 0 | CH35: Allemagne | CI35: 0 | CJ35: 0 | CK35: Pologne
A36: 27 | B36: 2016-06-20 | C36: 21:00:00 | D36: 1 | E36: 0 | F36: 1 | G36: 0 | H36: Slovaquie | I36: 0 | J36: 0 | K36: Angleterre | L36: =Resultats!J32 -> 3 | M36: =Resultats!K32 -> 2 | N36: =Resultats!L32 -> 1.772043686 | O36: 1 | P36: 0 | Q36: 1 | R36: 0 | X36: 2 | Y36: =VLOOKUP(X36,AJ35:AT38,2,FALSE) -> Belgique | Z36: =(3*AB36)+AC36 -> 6 | AA36: =SUM(AB36:AD36) -> 3 | AB36: =VLOOKUP(X36,AJ35:AT38,6,FALSE) -> 2 | AC36: =VLOOKUP(X36,AJ35:AT38,7,FALSE) -> 0 | AD36: =VLOOKUP(X36,AJ35:AT38,8,FALSE) -> 1 | AE36: =VLOOKUP(X36,AJ35:AT38,9,FALSE) -> 4 | AF36: =VLOOKUP(X36,AJ35:AT38,10,FALSE) -> 2 | AG36: =AE36-AF36 -> 2 | AI36: 2 | AJ36: =RANK(AL36,AL35:AL38) -> 1 | AK36: =K19 -> Italie | AL36: =(AN36*1000000000)+((AU36+BA36)*100000)+(AT36*1000)+(AR36*10)-AI36 -> 6100002028 | AM36: =O34+D36+D39 -> 3 | AN36: =(3*AO36)+AP36 -> 6 | AO36: =COUNTIFS(PaysR,AK36,VpaysR,"1")+ COUNTIFS(PaysV,AK36,VpaysV,"1") -> 2 | AP36: =COUNTIFS(PaysR,AK36,NpaysR,"1")+ COUNTIFS(PaysV,AK36,NpaysV,"1") -> 0 | AQ36: =COUNTIFS(PaysR,AK36,DpaysR,"1")+ COUNTIFS(PaysV,AK36,DpaysV,"1") -> 1 | AR36: =SUMIFS(BpaysR,PaysR,AK36)+SUMIFS(BpaysV,PaysV,AK36) -> 3 | AS36: =SUMIFS(BpaysV,PaysR,AK36)+SUMIFS(BpaysR,PaysV,AK36) -> 1 | AT36: =AR36-AS36 -> 2 | AU36: =IF(AND(AV36<>"",COUNTIF(AW36:AZ36,AV36)=1),1000,0) -> 1000 | AV36: =IF(COUNTIF(AN35:AN38,AN36)=2,IF(AN36=AN35,AI35,IF(AN36=AN37,AI37,IF(AN36=AN38,AI38,""))),"") -> 1 | AW36: =IF($CJ$54>$CI$54,1,"") -> 1 | AY36: =IF($CI$59>$CJ$59,3,"") ->  | AZ36: =IF($CI$56>$CJ$56,4,"") -> 4 | BA36: =SUM(BD36:BG36) -> 0 | BB36: =IF(COUNTIF(AN35:AN38,AN36)=3,IF(AN36=AN35,AI35,AI37),"") ->  | BC36: =IF(COUNTIF(AN35:AN38,AN36)=3,IF(AN36=AN38,AI38,AI37),"") ->  | BD36: =IF(COUNTIF(BB36:BC36,BD34)=1,1000*($CJ$54-$CI$54)+10*$CJ$54,"") ->  | BF36: =IF(COUNTIF(BB36:BC36,BF34)=1,1000*($CI$59-$CJ$59)+10*$CI$59,"") ->  | BG36: =IF(COUNTIF(BB36:BC36,BG34)=1,1000*($CJ$57-$CI$57)+10*$CJ$57,"") ->  | BH36: =AK36 -> Italie | BJ36: 1.5 | CB36: 42542 | CC36: 0.75 | CD36: 1 | CE36: 0 | CF36: 0 | CG36: 1 | CH36: Irlande du Nord | CI36: 0 | CJ36: 1 | CK36: Allemagne
A37: 28 | B37: 2016-06-20 | C37: 21:00:00 | D37: 1 | E37: 0 | F37: 0 | G37: 1 | H37: Russie | I37: 0 | J37: 3 | K37: Pays de Galles | L37: =Resultats!J33 -> 2.470734629 | M37: =Resultats!K33 -> 3.256174377 | N37: =Resultats!L33 -> 3.208393177 | O37: 1 | P37: 1 | Q37: 0 | R37: 0 | X37: 3 | Y37: =VLOOKUP(X37,AJ35:AT38,2,FALSE) -> Irlande | Z37: =(3*AB37)+AC37 -> 4 | AA37: =SUM(AB37:AD37) -> 3 | AB37: =VLOOKUP(X37,AJ35:AT38,6,FALSE) -> 1 | AC37: =VLOOKUP(X37,AJ35:AT38,7,FALSE) -> 1 | AD37: =VLOOKUP(X37,AJ35:AT38,8,FALSE) -> 1 | AE37: =VLOOKUP(X37,AJ35:AT38,9,FALSE) -> 2 | AF37: =VLOOKUP(X37,AJ35:AT38,10,FALSE) -> 4 | AG37: =AE37-AF37 -> -2 | AI37: 3 | AJ37: =RANK(AL37,AL35:AL38) -> 3 | AK37: =H18 -> Irlande | AL37: =(AN37*1000000000)+((AU37+BA37)*100000)+(AT37*1000)+(AR37*10)-AI37 -> 3999998017 | AM37: =D35+O37+O39 -> 3 | AN37: =(3*AO37)+AP37 -> 4 | AO37: =COUNTIFS(PaysR,AK37,VpaysR,"1")+ COUNTIFS(PaysV,AK37,VpaysV,"1") -> 1 | AP37: =COUNTIFS(PaysR,AK37,NpaysR,"1")+ COUNTIFS(PaysV,AK37,NpaysV,"1") -> 1 | AQ37: =COUNTIFS(PaysR,AK37,DpaysR,"1")+ COUNTIFS(PaysV,AK37,DpaysV,"1") -> 1 | AR37: =SUMIFS(BpaysR,PaysR,AK37)+SUMIFS(BpaysV,PaysV,AK37) -> 2 | AS37: =SUMIFS(BpaysV,PaysR,AK37)+SUMIFS(BpaysR,PaysV,AK37) -> 4 | AT37: =AR37-AS37 -> -2 | AU37: 0 | AV37: =IF(COUNTIF(AN35:AN38,AN37)=2,IF(AN37=AN35,AI35,IF(AN37=AN36,AI36,IF(AN37=AN38,AI38,""))),"") ->  | AW37: =IF($CJ$57>$CI$57,1,"") ->  | AX37: =IF($CJ$59>$CI$59,2,"") -> 2 | AZ37: =IF($CI$55>$CJ$55,4,"") ->  | BA37: =SUM(BD37:BG37) -> 0 | BB37: =IF(COUNTIF(AN35:AN38,AN37)=3,IF(AN37=AN35,AI35,AI36),"") ->  | BC37: =IF(COUNTIF(AN35:AN38,AN37)=3,IF(AN37=AN38,AI38,AI36),"") ->  | BD37: =IF(COUNTIF(BB37:BC37,BD34)=1,1000*($CJ$56-$CI$56)+10*$CJ$56,"") ->  | BE37: =IF(COUNTIF(BB37:BC37,BE34)=1,1000*($CJ$59-$CI$59)+10*$CJ$59,"") ->  | BG37: =IF(COUNTIF(BB37:BC37,BG34)=1,1000*($CI$55-$CJ$55)+10*$CI$55,"") ->  | BH37: =AK37 -> Irlande | BJ37: 1.8 | CB37: 42542 | CC37: 0.75 | CD37: 1 | CE37: 1 | CF37: 0 | CG37: 0 | CH37: Ukraine | CI37: 0 | CJ37: 1 | CK37: Pologne
A38: 29 | B38: 2016-06-21 | C38: 18:00:00 | D38: 1 | E38: 0 | F38: 0 | G38: 1 | H38: Irlande du Nord | I38: 0 | J38: 1 | K38: Allemagne | L38: =Resultats!J34 -> 3 | M38: =Resultats!K34 -> 2 | N38: =Resultats!L34 -> 1.292449298 | O38: 1 | P38: 1 | Q38: 0 | R38: 0 | X38: 4 | Y38: =VLOOKUP(X38,AJ35:AT38,2,FALSE) -> Suède | Z38: =(3*AB38)+AC38 -> 1 | AA38: =SUM(AB38:AD38) -> 3 | AB38: =VLOOKUP(X38,AJ35:AT38,6,FALSE) -> 0 | AC38: =VLOOKUP(X38,AJ35:AT38,7,FALSE) -> 1 | AD38: =VLOOKUP(X38,AJ35:AT38,8,FALSE) -> 2 | AE38: =VLOOKUP(X38,AJ35:AT38,9,FALSE) -> 1 | AF38: =VLOOKUP(X38,AJ35:AT38,10,FALSE) -> 3 | AG38: =AE38-AF38 -> -2 | AI38: 4 | AJ38: =RANK(AL38,AL35:AL38) -> 4 | AK38: =K18 -> Suède | AL38: =(AN38*1000000000)+((AU38+BA38)*100000)+(AT38*1000)+(AR38*10)-AI38 -> 999998006 | AM38: =O35+O36+D38 -> 3 | AN38: =(3*AO38)+AP38 -> 1 | AO38: =COUNTIFS(PaysR,AK38,VpaysR,"1")+ COUNTIFS(PaysV,AK38,VpaysV,"1") -> 0 | AP38: =COUNTIFS(PaysR,AK38,NpaysR,"1")+ COUNTIFS(PaysV,AK38,NpaysV,"1") -> 1 | AQ38: =COUNTIFS(PaysR,AK38,DpaysR,"1")+ COUNTIFS(PaysV,AK38,DpaysV,"1") -> 2 | AR38: =SUMIFS(BpaysR,PaysR,AK38)+SUMIFS(BpaysV,PaysV,AK38) -> 1 | AS38: =SUMIFS(BpaysV,PaysR,AK38)+SUMIFS(BpaysR,PaysV,AK38) -> 3 | AT38: =AR38-AS38 -> -2 | AU38: 0 | AV38: =IF(COUNTIF(AN35:AN38,AN38)=2,IF(AN38=AN35,AI35,IF(AN38=AN36,AI36,IF(AN38=AN37,AI37,""))),"") ->  | AW38: =IF($CI$58>$CJ$58,1,"") ->  | AX38: =IF($CJ$56>$CI$56,2,"") ->  | AY38: =IF($CJ$55>$CI$55,3,"") ->  | BA38: =SUM(BD38:BG38) -> 0 | BB38: =IF(COUNTIF(AN35:AN38,AN38)=3,IF(AN38=AN35,AI35,AI36),"") ->  | BC38: =IF(COUNTIF(AN35:AN38,AN38)=3,IF(AN38=AN37,AI37,AI36),"") ->  | BD38: =IF(COUNTIF(BB38:BC38,BD34)=1,1000*($CI$58-$CJ$58)+10*$CI$58,"") ->  | BE38: =IF(COUNTIF(BB38:BC38,BE34)=1,1000*($CI$57-$CJ$57)+10*$CI$57,"") ->  | BF38: =IF(COUNTIF(BB38:BC38,BF34)=1,1000*($CJ$55-$CI$55)+10*$CJ$55,"") ->  | BH38: =AK38 -> Suède | BJ38: 6
A39: 30 | B39: 2016-06-21 | C39: 18:00:00 | D39: 1 | E39: 0 | F39: 0 | G39: 1 | H39: Ukraine | I39: 0 | J39: 1 | K39: Pologne | L39: =Resultats!J35 -> 3.648176591 | M39: =Resultats!K35 -> 3.438417249 | N39: =Resultats!L35 -> 2.374716589 | O39: 1 | P39: 1 | Q39: 0 | R39: 0
A40: 31 | B40: 2016-06-21 | C40: 21:00:00 | D40: 1 | E40: 1 | F40: 0 | G40: 0 | H40: Croatie | I40: 2 | J40: 1 | K40: Espagne | L40: =Resultats!J36 -> 3 | M40: =Resultats!K36 -> 2 | N40: =Resultats!L36 -> 1.960524065 | O40: =IF(AND(I40<>"",J40<>""),1,0) -> 1 | P40: 0 | Q40: 0 | R40: 1 | Y40: Poule F | Z40: PTS | AA40: J | AB40: G | AC40: N | AD40: P | AE40: B+ | AF40: B- | AG40: Diff | AJ40: Class | AL40: PT/Class | AM40: J | AN40: PTS | AO40: G | AP40: N | AQ40: P | AR40: B+ | AS40: B- | AT40: Diff | AU40: Bonus | AV40: Egalité | AW40: 1 | AX40: 2 | AY40: 3 | AZ40: 4 | BA40: Bonus | BB40: Egalite 1 | BC40: Egalite 2 | BD40: 1 | BE40: 2 | BF40: 3 | BG40: 4 | BH40: COTES QUALIF 8ème
A41: 32 | B41: 2016-06-21 | C41: 21:00:00 | D41: 1 | E41: 0 | F41: 0 | G41: 1 | H41: Rép. Tchèque | I41: 0 | J41: 2 | K41: Turquie | L41: =Resultats!J37 -> 2.774051563 | M41: =Resultats!K37 -> 3.196770583 | N41: =Resultats!L37 -> 2.574502674 | O41: 1 | P41: 1 | Q41: 0 | R41: 0 | X41: 1 | Y41: =VLOOKUP(X41,AJ41:AT44,2,FALSE) -> Hongrie | Z41: =(3*AB41)+AC41 -> 5 | AA41: =SUM(AB41:AD41) -> 3 | AB41: =VLOOKUP(X41,AJ41:AT44,6,FALSE) -> 1 | AC41: =VLOOKUP(X41,AJ41:AT44,7,FALSE) -> 2 | AD41: =VLOOKUP(X41,AJ41:AT44,8,FALSE) -> 0 | AE41: =VLOOKUP(X41,AJ41:AT44,9,FALSE) -> 6 | AF41: =VLOOKUP(X41,AJ41:AT44,10,FALSE) -> 4 | AG41: =AE41-AF41 -> 2 | AI41: 1 | AJ41: =RANK(AL41,AL41:AL44) -> 3 | AK41: =H21 -> Portugal | AL41: =(AN41*1000000000)+((AU41+BA41)*100000)+(AT41*1000)+(AR41*10)-AI41 -> 3000000039 | AM41: =D40+D43+O44 -> 3 | AN41: =(3*AO41)+AP41 -> 3 | AO41: =COUNTIFS(PaysR,AK41,VpaysR,"1")+ COUNTIFS(PaysV,AK41,VpaysV,"1") -> 0 | AP41: =COUNTIFS(PaysR,AK41,NpaysR,"1")+ COUNTIFS(PaysV,AK41,NpaysV,"1") -> 3 | AQ41: =COUNTIFS(PaysR,AK41,DpaysR,"1")+ COUNTIFS(PaysV,AK41,DpaysV,"1") -> 0 | AR41: =SUMIFS(BpaysR,PaysR,AK41)+SUMIFS(BpaysV,PaysV,AK41) -> 4 | AS41: =SUMIFS(BpaysV,PaysR,AK41)+SUMIFS(BpaysR,PaysV,AK41) -> 4 | AT41: =AR41-AS41 -> 0 | AU41: =IF(AND(AV41<>"",COUNTIF(AW41:AZ41,AV41)=1),1000,0) -> 0 | AV41: =IF(COUNTIF(AN41:AN44,AN41)=2,IF(AN41=AN42,AI42,IF(AN41=AN43,AI43,IF(AN41=AN44,AI44,""))),"") ->  | AX41: =IF($CI$65>$CJ$65,2,"") ->  | AY41: =IF($CI$68>$CJ$68,3,"") ->  | AZ41: =IF($CJ$69>$CI$69,4,"") ->  | BA41: =SUM(BD41:BG41) -> 0 | BB41: =IF(COUNTIF(AN41:AN44,AN41)=3,IF(AN41=AN42,AI42,AI43),"") ->  | BC41: =IF(COUNTIF(AN41:AN44,AN41)=3,IF(AN41=AN44,AI44,AI43),"") ->  | BE41: =IF(COUNTIF(BB41:BC41,BE40)=1,1000*($CI$65-$CJ$65)+10*$CI$65,"") ->  | BF41: =IF(COUNTIF(BB41:BC41,BF40)=1,1000*($CI$67-$CJ$67)+10*$CI$67,"") ->  | BG41: =IF(COUNTIF(BB41:BC41,BG40)=1,1000*($CJ$69-$CI$69)+10*$CJ$69,"") ->  | BH41: =AK41 -> Portugal | BJ41: 1 | CB41: GROUPE D | CH41: GROUPE D
A42: 33 | B42: 2016-06-22 | C42: 18:00:00 | D42: 1 | E42: 0 | F42: 1 | G42: 0 | H42: Hongrie | I42: 3 | J42: 3 | K42: Portugal | L42: =Resultats!J38 -> 3 | M42: =Resultats!K38 -> 2 | N42: =Resultats!L38 -> 1.661611408 | O42: 1 | P42: 0 | Q42: 1 | R42: 0 | X42: 2 | Y42: =VLOOKUP(X42,AJ41:AT44,2,FALSE) -> Islande | Z42: =(3*AB42)+AC42 -> 5 | AA42: =SUM(AB42:AD42) -> 3 | AB42: =VLOOKUP(X42,AJ41:AT44,6,FALSE) -> 1 | AC42: =VLOOKUP(X42,AJ41:AT44,7,FALSE) -> 2 | AD42: =VLOOKUP(X42,AJ41:AT44,8,FALSE) -> 0 | AE42: =VLOOKUP(X42,AJ41:AT44,9,FALSE) -> 4 | AF42: =VLOOKUP(X42,AJ41:AT44,10,FALSE) -> 3 | AG42: =AE42-AF42 -> 1 | AI42: 2 | AJ42: =RANK(AL42,AL41:AL44) -> 2 | AK42: =K21 -> Islande | AL42: =(AN42*1000000000)+((AU42+BA42)*100000)+(AT42*1000)+(AR42*10)-AI42 -> 5000001038 | AM42: =O40+D42+D45 -> 3 | AN42: =(3*AO42)+AP42 -> 5 | AO42: =COUNTIFS(PaysR,AK42,VpaysR,"1")+ COUNTIFS(PaysV,AK42,VpaysV,"1") -> 1 | AP42: =COUNTIFS(PaysR,AK42,NpaysR,"1")+ COUNTIFS(PaysV,AK42,NpaysV,"1") -> 2 | AQ42: =COUNTIFS(PaysR,AK42,DpaysR,"1")+ COUNTIFS(PaysV,AK42,DpaysV,"1") -> 0 | AR42: =SUMIFS(BpaysR,PaysR,AK42)+SUMIFS(BpaysV,PaysV,AK42) -> 4 | AS42: =SUMIFS(BpaysV,PaysR,AK42)+SUMIFS(BpaysR,PaysV,AK42) -> 3 | AT42: =AR42-AS42 -> 1 | AU42: =IF(AND(AV42<>"",COUNTIF(AW42:AZ42,AV42)=1),1000,0) -> 0 | AV42: =IF(COUNTIF(AN41:AN44,AN42)=2,IF(AN42=AN41,AI41,IF(AN42=AN43,AI43,IF(AN42=AN44,AI44,""))),"") -> 4 | AW42: =IF($CJ$65>$CI$65,1,"") ->  | AY42: =IF($CI$70>$CJ$70,3,"") -> 3 | AZ42: =IF($CI$67>$CJ$67,4,"") ->  | BA42: =SUM(BD42:BG42) -> 0 | BB42: =IF(COUNTIF(AN41:AN44,AN42)=3,IF(AN42=AN41,AI41,AI43),"") ->  | BC42: =IF(COUNTIF(AN41:AN44,AN42)=3,IF(AN42=AN44,AI44,AI43),"") ->  | BD42: =IF(COUNTIF(BB42:BC42,BD40)=1,1000*($CJ$65-$CI$65)+10*$CJ$65,"") ->  | BF42: =IF(COUNTIF(BB42:BC42,BF40)=1,1000*($CI$70-$CJ$70)+10*$CI$70,"") ->  | BG42: =IF(COUNTIF(BB42:BC42,BG40)=1,1000*($CJ$68-$CI$68)+10*$CJ$68,"") ->  | BH42: =AK42 -> Islande | BJ42: 1.6
A43: 34 | B43: 2016-06-22 | C43: 18:00:00 | D43: 1 | E43: 1 | F43: 0 | G43: 0 | H43: Islande | I43: 2 | J43: 1 | K43: Autriche | L43: =Resultats!J39 -> 3 | M43: =Resultats!K39 -> 2 | N43: =Resultats!L39 -> 1.956845712 | O43: =IF(AND(I43<>"",J43<>""),1,0) -> 1 | P43: 0 | Q43: 0 | R43: 1 | X43: 3 | Y43: =VLOOKUP(X43,AJ41:AT44,2,FALSE) -> Portugal | Z43: =(3*AB43)+AC43 -> 3 | AA43: =SUM(AB43:AD43) -> 3 | AB43: =VLOOKUP(X43,AJ41:AT44,6,FALSE) -> 0 | AC43: =VLOOKUP(X43,AJ41:AT44,7,FALSE) -> 3 | AD43: =VLOOKUP(X43,AJ41:AT44,8,FALSE) -> 0 | AE43: =VLOOKUP(X43,AJ41:AT44,9,FALSE) -> 4 | AF43: =VLOOKUP(X43,AJ41:AT44,10,FALSE) -> 4 | AG43: =AE43-AF43 -> 0 | AI43: 3 | AJ43: =RANK(AL43,AL41:AL44) -> 4 | AK43: =H20 -> Autriche | AL43: =(AN43*1000000000)+((AU43+BA43)*100000)+(AT43*1000)+(AR43*10)-AI43 -> 999997007 | AM43: =D41+O43+O45 -> 3 | AN43: =(3*AO43)+AP43 -> 1 | AO43: =COUNTIFS(PaysR,AK43,VpaysR,"1")+ COUNTIFS(PaysV,AK43,VpaysV,"1") -> 0 | AP43: =COUNTIFS(PaysR,AK43,NpaysR,"1")+ COUNTIFS(PaysV,AK43,NpaysV,"1") -> 1 | AQ43: =COUNTIFS(PaysR,AK43,DpaysR,"1")+ COUNTIFS(PaysV,AK43,DpaysV,"1") -> 2 | AR43: =SUMIFS(BpaysR,PaysR,AK43)+SUMIFS(BpaysV,PaysV,AK43) -> 1 | AS43: =SUMIFS(BpaysV,PaysR,AK43)+SUMIFS(BpaysR,PaysV,AK43) -> 4 | AT43: =AR43-AS43 -> -3 | AU43: 0 | AV43: =IF(COUNTIF(AN41:AN44,AN43)=2,IF(AN43=AN41,AI41,IF(AN43=AN42,AI42,IF(AN43=AN44,AI44,""))),"") ->  | AW43: =IF($CJ$68>$CI$68,1,"") ->  | AX43: =IF($CJ$70>$CI$70,2,"") ->  | AZ43: =IF($CI$66>$CJ$66,4,"") ->  | BA43: =SUM(BD43:BG43) -> 0 | BB43: =IF(COUNTIF(AN41:AN44,AN43)=3,IF(AN43=AN41,AI41,AI42),"") ->  | BC43: =IF(COUNTIF(AN41:AN44,AN43)=3,IF(AN43=AN44,AI44,AI42),"") ->  | BD43: =IF(COUNTIF(BB43:BC43,BD40)=1,1000*($CJ$67-$CI$67)+10*$CJ$67,"") ->  | BE43: =IF(COUNTIF(BB43:BC43,BE40)=1,1000*($CJ$70-$CI$70)+10*$CJ$70,"") ->  | BG43: =IF(COUNTIF(BB43:BC43,BG40)=1,1000*($CI$66-$CJ$66)+10*$CI$66,"") ->  | BH43: =AK43 -> Autriche | BJ43: 1.9 | CB43: 42534 | CC43: 0.625 | CD43: 1 | CE43: 1 | CF43: 0 | CG43: 0 | CH43: Espagne | CI43: 1 | CJ43: 0 | CK43: Rép. Tchèque
A44: 35 | B44: 2016-06-22 | C44: 21:00:00 | D44: 1 | E44: 0 | F44: 0 | G44: 1 | H44: Suède | I44: 0 | J44: 1 | K44: Belgique | L44: =Resultats!J40 -> 3 | M44: =Resultats!K40 -> 2 | N44: =Resultats!L40 -> 2.067615379 | O44: 1 | P44: 1 | Q44: 0 | R44: 0 | X44: 4 | Y44: =VLOOKUP(X44,AJ41:AT44,2,FALSE) -> Autriche | Z44: =(3*AB44)+AC44 -> 1 | AA44: =SUM(AB44:AD44) -> 3 | AB44: =VLOOKUP(X44,AJ41:AT44,6,FALSE) -> 0 | AC44: =VLOOKUP(X44,AJ41:AT44,7,FALSE) -> 1 | AD44: =VLOOKUP(X44,AJ41:AT44,8,FALSE) -> 2 | AE44: =VLOOKUP(X44,AJ41:AT44,9,FALSE) -> 1 | AF44: =VLOOKUP(X44,AJ41:AT44,10,FALSE) -> 4 | AG44: =AE44-AF44 -> -3 | AI44: 4 | AJ44: =RANK(AL44,AL41:AL44) -> 1 | AK44: =K20 -> Hongrie | AL44: =(AN44*1000000000)+((AU44+BA44)*100000)+(AT44*1000)+(AR44*10)-AI44 -> 5000002056 | AM44: =O41+O42+D44 -> 3 | AN44: =(3*AO44)+AP44 -> 5 | AO44: =COUNTIFS(PaysR,AK44,VpaysR,"1")+ COUNTIFS(PaysV,AK44,VpaysV,"1") -> 1 | AP44: =COUNTIFS(PaysR,AK44,NpaysR,"1")+ COUNTIFS(PaysV,AK44,NpaysV,"1") -> 2 | AQ44: =COUNTIFS(PaysR,AK44,DpaysR,"1")+ COUNTIFS(PaysV,AK44,DpaysV,"1") -> 0 | AR44: =SUMIFS(BpaysR,PaysR,AK44)+SUMIFS(BpaysV,PaysV,AK44) -> 6 | AS44: =SUMIFS(BpaysV,PaysR,AK44)+SUMIFS(BpaysR,PaysV,AK44) -> 4 | AT44: =AR44-AS44 -> 2 | AU44: 0 | AV44: =IF(COUNTIF(AN41:AN44,AN44)=2,IF(AN44=AN41,AI41,IF(AN44=AN42,AI42,IF(AN44=AN43,AI43,""))),"") -> 2 | AW44: =IF($CI$69>$CJ$69,1,"") ->  | AX44: =IF($CJ$67>$CI$67,2,"") ->  | AY44: =IF($CJ$66>$CI$66,3,"") -> 3 | BA44: =SUM(BD44:BG44) -> 0 | BB44: =IF(COUNTIF(AN41:AN44,AN44)=3,IF(AN44=AN41,AI41,AI42),"") ->  | BC44: =IF(COUNTIF(AN41:AN44,AN44)=3,IF(AN44=AN43,AI43,AI42),"") ->  | BD44: =IF(COUNTIF(BB44:BC44,BD40)=1,1000*($CI$69-$CJ$69)+10*$CI$69,"") ->  | BE44: =IF(COUNTIF(BB44:BC44,BE40)=1,1000*($CI$68-$CJ$68)+10*$CI$68,"") ->  | BF44: =IF(COUNTIF(BB44:BC44,BF40)=1,1000*($CJ$66-$CI$66)+10*$CJ$66,"") ->  | BH44: =AK44 -> Hongrie | BJ44: 6 | CB44: 42533 | CC44: 0.625 | CD44: 1 | CE44: 1 | CF44: 0 | CG44: 0 | CH44: Turquie | CI44: 0 | CJ44: 1 | CK44: Croatie
A45: 36 | B45: 2016-06-22 | C45: 21:00:00 | D45: 1 | E45: 0 | F45: 0 | G45: 1 | H45: Italie | I45: 0 | J45: 1 | K45: Irlande | L45: =Resultats!J41 -> 1.949456861 | M45: =Resultats!K41 -> 2 | N45: =Resultats!L41 -> 3 | O45: 1 | P45: 1 | Q45: 0 | R45: 0 | CB45: 42538 | CC45: 0.75 | CD45: 1 | CE45: 1 | CF45: 0 | CG45: 0 | CH45: Rép. Tchèque | CI45: 2 | CJ45: 2 | CK45: Croatie
X46: CLASSEMENT DES 3èmes DE GROUPE | CB46: 42538 | CC46: 0.875 | CD46: 1 | CE46: 0 | CF46: 1 | CG46: 0 | CH46: Espagne | CI46: 3 | CJ46: 0 | CK46: Turquie
A47: N°: | B47: Date et heure | H47: Huitièmes de finale (fin 90') | L47: ap. prlg. | N47: Vainqueur (X) | T47: COTES (1N2) | CB47: 42542 | CC47: 0.875 | CD47: 1 | CE47: 0 | CF47: 1 | CG47: 0 | CH47: Croatie | CI47: 2 | CJ47: 1 | CK47: Espagne
A48: 37 | B48: 2016-06-25 | C48: 15:00:00 | H48: =IF(SUM(Matchs!AA11:AA14)=12,Matchs!Y12,"") -> Suisse | I48: 1 | J48: 1 | K48: =IF(SUM(Matchs!AA23:AA26)=12,Matchs!Y24,"") -> Pologne | L48: 1 | M48: 1 | S48: x | T48: =IF(Resultats!J42<>"",Resultats!J42,"") -> 3.05 | U48: =IF(Resultats!K42<>"",Resultats!K42,"") -> 2.91 | V48: =IF(Resultats!L42<>"",Resultats!L42,"") -> 2.58 | Z48: PTS | AA48: J | AB48: G | AC48: N | AD48: P | AE48: B+ | AF48: B- | AG48: Diff | CB48: 42542 | CC48: 0.875 | CD48: 1 | CE48: 1 | CF48: 0 | CG48: 0 | CH48: Rép. Tchèque | CI48: 0 | CJ48: 2 | CK48: Turquie
A49: 38 | B49: 2016-06-25 | C49: 18:00:00 | H49: =IF(SUM(Matchs!AA17:AA20)=12,Matchs!Y17,"") -> Pays de Galles | I49: 1 | J49: 0 | K49: =IF(SUM(Matchs!AA11:AA14,Matchs!AA17:AA20,Matchs!AA23:AA26,Matchs!AA29:AA32,Matchs!AA35:AA38,Matchs!AA41:AA44)=72,Matchs!AC57,"") -> Irlande du Nord | T49: =IF(Resultats!J43<>"",Resultats!J43,"") -> 2.46 | U49: =IF(Resultats!K43<>"",Resultats!K43,"") -> 2.91 | V49: =IF(Resultats!L43<>"",Resultats!L43,"") -> 2.85 | X49: 1 | Y49: =VLOOKUP(X49,AJ49:AT54,2,FALSE) -> Slovaquie | Z49: =(3*AB49)+AC49 -> 4 | AA49: =SUM(AB49:AD49) -> 3 | AB49: =VLOOKUP(X49,AJ49:AT54,6,FALSE) -> 1 | AC49: =VLOOKUP(X49,AJ49:AT54,7,FALSE) -> 1 | AD49: =VLOOKUP(X49,AJ49:AT54,8,FALSE) -> 1 | AE49: =VLOOKUP(X49,AJ49:AT54,9,FALSE) -> 3 | AF49: =VLOOKUP(X49,AJ49:AT54,10,FALSE) -> 3 | AG49: =AE49-AF49 -> 0 | AH49: =VLOOKUP(X49,$AJ$49:$AU$54,12,FALSE) -> 2 | AI49: 1 | AJ49: =RANK(AL49,$AL$49:$AL$54) -> 6 | AK49: =Y13 -> Albanie | AL49: =(AN49*100000000)+(AT49*100000)+(AR49*1000)-AI49 -> 299800999 | AM49: =AA13 -> 3 | AN49: =Z13 -> 3 | AO49: =AB13 -> 1 | AP49: 0 | AQ49: 2 | AR49: 1 | AS49: 3 | AT49: -2 | AU49: 1
A50: 39 | B50: 2016-06-25 | C50: 21:00:00 | H50: =IF(SUM(Matchs!AA29:AA32)=12,Matchs!Y29,"") -> Croatie | I50: 0 | J50: 0 | K50: =IF(SUM(Matchs!AA11:AA14,Matchs!AA17:AA20,Matchs!AA23:AA26,Matchs!AA29:AA32,Matchs!AA35:AA38,Matchs!AA41:AA44)=72,Matchs!AE57,"") -> Portugal | L50: 0 | M50: 1 | T50: =IF(Resultats!J44<>"",Resultats!J44,"") -> 1.89 | U50: =IF(Resultats!K44<>"",Resultats!K44,"") -> 2.75 | V50: =IF(Resultats!L44<>"",Resultats!L44,"") -> 3 | X50: 2 | Y50: =VLOOKUP(X50,AJ49:AT54,2,FALSE) -> Irlande | Z50: 4 | AA50: 3 | AB50: =VLOOKUP(X50,AJ49:AT54,6,FALSE) -> 1 | AC50: =VLOOKUP(X50,AJ49:AT54,7,FALSE) -> 1 | AD50: =VLOOKUP(X50,AJ49:AT54,8,FALSE) -> 1 | AE50: =VLOOKUP(X50,AJ49:AT54,9,FALSE) -> 2 | AF50: =VLOOKUP(X50,AJ49:AT54,10,FALSE) -> 4 | AG50: -2 | AH50: 5 | AI50: 2 | AJ50: 1 | AK50: =Y19 -> Slovaquie | AL50: 400002998 | AM50: =AA19 -> 3 | AN50: =Z19 -> 4 | AO50: =AB19 -> 1 | AP50: 1 | AQ50: 1 | AR50: 3 | AS50: 3 | AT50: 0 | AU50: 2
A51: 40 | B51: 2016-06-26 | C51: 15:00:00 | H51: =IF(SUM(Matchs!AA11:AA14)=12,Matchs!Y11,"") -> France | I51: 2 | J51: 1 | K51: =IF(SUM(Matchs!AA11:AA14,Matchs!AA17:AA20,Matchs!AA23:AA26,Matchs!AA29:AA32,Matchs!AA35:AA38,Matchs!AA41:AA44)=72,Matchs!AB57,"") -> Irlande | T51: =IF(Resultats!J45<>"",Resultats!J45,"") -> 3 | U51: =IF(Resultats!K45<>"",Resultats!K45,"") -> 2.94 | V51: =IF(Resultats!L45<>"",Resultats!L45,"") -> 2.12 | X51: 3 | Y51: =VLOOKUP(X51,AJ49:AT54,2,FALSE) -> Portugal | Z51: 3 | AA51: 3 | AB51: =VLOOKUP(X51,AJ49:AT54,6,FALSE) -> 0 | AC51: =VLOOKUP(X51,AJ49:AT54,7,FALSE) -> 3 | AD51: =VLOOKUP(X51,AJ49:AT54,8,FALSE) -> 0 | AE51: =VLOOKUP(X51,AJ49:AT54,9,FALSE) -> 4 | AF51: =VLOOKUP(X51,AJ49:AT54,10,FALSE) -> 4 | AG51: 0 | AH51: 6 | AI51: 3 | AJ51: 4 | AK51: =Y25 -> Irlande du Nord | AL51: 300001997 | AM51: =AA25 -> 3 | AN51: =Z25 -> 3 | AO51: =AB25 -> 1 | AP51: 0 | AQ51: 2 | AR51: 2 | AS51: 2 | AT51: 0 | AU51: 3
A52: 41 | B52: 2016-06-26 | C52: 18:00:00 | H52: =IF(SUM(Matchs!AA23:AA26)=12,Matchs!Y23,"") -> Allemagne | I52: 3 | J52: 0 | K52: =IF(SUM(Matchs!AA11:AA14,Matchs!AA17:AA20,Matchs!AA23:AA26,Matchs!AA29:AA32,Matchs!AA35:AA38,Matchs!AA41:AA44)=72,Matchs!AD57,"") -> Slovaquie | T52: =IF(Resultats!J46<>"",Resultats!J46,"") -> 1.38 | U52: =IF(Resultats!K46<>"",Resultats!K46,"") -> 2 | V52: =IF(Resultats!L46<>"",Resultats!L46,"") -> 3 | X52: 4 | Y52: =VLOOKUP(X52,AJ49:AT54,2,FALSE) -> Irlande du Nord | Z52: 3 | AA52: 3 | AB52: =VLOOKUP(X52,AJ49:AT54,6,FALSE) -> 1 | AC52: =VLOOKUP(X52,AJ49:AT54,7,FALSE) -> 0 | AD52: =VLOOKUP(X52,AJ49:AT54,8,FALSE) -> 2 | AE52: =VLOOKUP(X52,AJ49:AT54,9,FALSE) -> 2 | AF52: =VLOOKUP(X52,AJ49:AT54,10,FALSE) -> 2 | AG52: 0 | AH52: 3 | AI52: 4 | AJ52: 5 | AK52: =Y31 -> Turquie | AL52: 299801996 | AM52: =AA31 -> 3 | AN52: =Z31 -> 3 | AO52: =AB31 -> 1 | AP52: 0 | AQ52: 2 | AR52: 2 | AS52: 4 | AT52: -2 | AU52: 4 | CB52: GROUPE E | CH52: GROUPE E
A53: 42 | B53: 2016-06-26 | C53: 21:00:00 | H53: =IF(SUM(Matchs!AA41:AA44)=12,Matchs!Y41,"") -> Hongrie | I53: 0 | J53: 4 | K53: =IF(SUM(Matchs!AA35:AA38)=12,Matchs!Y36,"") -> Belgique | T53: =IF(Resultats!J47<>"",Resultats!J47,"") -> 1.44 | U53: =IF(Resultats!K47<>"",Resultats!K47,"") -> 2 | V53: =IF(Resultats!L47<>"",Resultats!L47,"") -> 3 | X53: 5 | Y53: =VLOOKUP(X53,AJ49:AT54,2,FALSE) -> Turquie | Z53: 3 | AA53: 3 | AB53: =VLOOKUP(X53,AJ49:AT54,6,FALSE) -> 1 | AC53: =VLOOKUP(X53,AJ49:AT54,7,FALSE) -> 0 | AD53: =VLOOKUP(X53,AJ49:AT54,8,FALSE) -> 2 | AE53: =VLOOKUP(X53,AJ49:AT54,9,FALSE) -> 2 | AF53: =VLOOKUP(X53,AJ49:AT54,10,FALSE) -> 4 | AG53: -2 | AH53: 4 | AI53: 5 | AJ53: 2 | AK53: =Y37 -> Irlande | AL53: 399801995 | AM53: =AA37 -> 3 | AN53: =Z37 -> 4 | AO53: =AB37 -> 1 | AP53: 1 | AQ53: 1 | AR53: 2 | AS53: 4 | AT53: -2 | AU53: 5
A54: 43 | B54: 2016-06-27 | C54: 18:00:00 | H54: =IF(SUM(Matchs!AA35:AA38)=12,Matchs!Y35,"") -> Italie | I54: 2 | J54: 0 | K54: =IF(SUM(Matchs!AA29:AA32)=12,Matchs!Y30,"") -> Espagne | T54: =IF(Resultats!J48<>"",Resultats!J48,"") -> 3 | U54: =IF(Resultats!K48<>"",Resultats!K48,"") -> 2 | V54: =IF(Resultats!L48<>"",Resultats!L48,"") -> 1.57 | X54: 6 | Y54: =VLOOKUP(X54,AJ49:AT54,2,FALSE) -> Albanie | Z54: 3 | AA54: 3 | AB54: =VLOOKUP(X54,AJ49:AT54,6,FALSE) -> 1 | AC54: =VLOOKUP(X54,AJ49:AT54,7,FALSE) -> 0 | AD54: =VLOOKUP(X54,AJ49:AT54,8,FALSE) -> 2 | AE54: =VLOOKUP(X54,AJ49:AT54,9,FALSE) -> 1 | AF54: =VLOOKUP(X54,AJ49:AT54,10,FALSE) -> 3 | AG54: -2 | AH54: 1 | AI54: 6 | AJ54: 3 | AK54: =Y43 -> Portugal | AL54: 300003994 | AM54: =AA43 -> 3 | AN54: =Z43 -> 3 | AO54: =AB43 -> 0 | AP54: 3 | AQ54: 0 | AR54: 4 | AS54: 4 | AT54: 0 | AU54: 6 | CB54: 42534 | CC54: 0.875 | CD54: 1 | CE54: 0 | CF54: 1 | CG54: 0 | CH54: Belgique | CI54: 0 | CJ54: 2 | CK54: Italie
A55: 44 | B55: 2016-06-27 | C55: 21:00:00 | H55: =IF(SUM(Matchs!AA17:AA20)=12,Matchs!Y18,"") -> Angleterre | I55: 1 | J55: 2 | K55: =IF(SUM(Matchs!AA41:AA44)=12,Matchs!Y42,"") -> Islande | T55: =IF(Resultats!J49<>"",Resultats!J49,"") -> 1.5 | U55: =IF(Resultats!K49<>"",Resultats!K49,"") -> 2 | V55: =IF(Resultats!L49<>"",Resultats!L49,"") -> 3 | CB55: 42534 | CC55: 0.75 | CD55: 1 | CE55: 1 | CF55: 0 | CG55: 0 | CH55: Irlande | CI55: 1 | CJ55: 1 | CK55: Suède
CB56: 42538 | CC56: 0.625 | CD56: 1 | CE56: 1 | CF56: 0 | CG56: 0 | CH56: Italie | CI56: 1 | CJ56: 0 | CK56: Suède
A57: N°: | B57: Date et heure | H57: Quarts de finale (fin 90') | L57: ap. prlg. | N57: Vainqueur (X) | T57: COTES (1N2) | AA57: =CONCATENATE(SMALL($AH$49:$AH$52,1),SMALL($AH$49:$AH$52,2),SMALL($AH$49:$AH$52,3),SMALL($AH$49:$AH$52,4)) -> 2356 | AB57: =VLOOKUP(AA57,AG59:AI73,3,FALSE) -> Irlande | AC57: =VLOOKUP(AA57,AG59:AJ73,4,FALSE) -> Irlande du Nord | AD57: =VLOOKUP(AA57,AG59:AK73,5,FALSE) -> Slovaquie | AE57: =VLOOKUP(AA57,AG59:AL73,6,FALSE) -> Portugal | CB57: 42539 | CC57: 0.625 | CD57: 1 | CE57: 0 | CF57: 1 | CG57: 0 | CH57: Belgique | CI57: 3 | CJ57: 0 | CK57: Irlande
A58: 45 | B58: 2016-06-30 | C58: 21:00:00 | H58: =IF(OR(I48="",J48=""),"",IF(OR(I48>J48,AND(I48=J48,L48>M48),AND(I48=J48,L48=M48,N48>S48)),H48,IF(OR(I48<J48,AND(I48=J48,L48<M48),AND(I48=J48,L48=M48,N48<S48)),K48,""))) -> Pologne | I58: 1 | J58: 1 | K58: =IF(OR(I50="",J50=""),"",IF(OR(I50>J50,AND(I50=J50,L50>M50),AND(I50=J50,L50=M50,N50>S50)),H50,IF(OR(I50<J50,AND(I50=J50,L50<M50),AND(I50=J50,L50=M50,N50<S50)),K50,""))) -> Portugal | L58: 1 | M58: 1 | S58: x | T58: =IF(Resultats!J50<>"",Resultats!J50,"") ->  | U58: =IF(Resultats!K50<>"",Resultats!K50,"") ->  | V58: =IF(Resultats!L50<>"",Resultats!L50,"") ->  | AI58: WA | AJ58: WB | AK58: WC | AL58: WD | CB58: 42543 | CC58: 0.875 | CD58: 1 | CE58: 0 | CF58: 1 | CG58: 0 | CH58: Suède | CI58: 0 | CJ58: 1 | CK58: Belgique
A59: 46 | B59: 2016-07-01 | C59: 21:00:00 | H59: =IF(OR(I49="",J49=""),"",IF(OR(I49>J49,AND(I49=J49,L49>M49),AND(I49=J49,L49=M49,N49>S49)),H49,IF(OR(I49<J49,AND(I49=J49,L49<M49),AND(I49=J49,L49=M49,N49<S49)),K49,""))) -> Pays de Galles | I59: 3 | J59: 1 | K59: =IF(OR(I53="",J53=""),"",IF(OR(I53>J53,AND(I53=J53,L53>M53),AND(I53=J53,L53=M53,N53>S53)),H53,IF(OR(I53<J53,AND(I53=J53,L53<M53),AND(I53=J53,L53=M53,N53<S53)),K53,""))) -> Belgique | T59: =IF(Resultats!J51<>"",Resultats!J51,"") ->  | U59: =IF(Resultats!K51<>"",Resultats!K51,"") ->  | V59: =IF(Resultats!L51<>"",Resultats!L51,"") ->  | AG59: 1234 | AI59: =Y25 -> Irlande du Nord | AJ59: =Y31 -> Turquie | AK59: =Y13 -> Albanie | AL59: =Y19 -> Slovaquie | CB59: 42543 | CC59: 0.875 | CD59: 1 | CE59: 1 | CF59: 0 | CG59: 0 | CH59: Italie | CI59: 0 | CJ59: 1 | CK59: Irlande
A60: 47 | B60: 2016-07-02 | C60: 21:00:00 | H60: =IF(OR(I52="",J52=""),"",IF(OR(I52>J52,AND(I52=J52,L52>M52),AND(I52=J52,L52=M52,N52>S52)),H52,IF(OR(I52<J52,AND(I52=J52,L52<M52),AND(I52=J52,L52=M52,N52<S52)),K52,""))) -> Allemagne | I60: 1 | J60: 1 | K60: =IF(OR(I54="",J54=""),"",IF(OR(I54>J54,AND(I54=J54,L54>M54),AND(I54=J54,L54=M54,N54>S54)),H54,IF(OR(I54<J54,AND(I54=J54,L54<M54),AND(I54=J54,L54=M54,N54<S54)),K54,""))) -> Italie | L60: 1 | M60: 1 | N60: x | T60: =IF(Resultats!J52<>"",Resultats!J52,"") ->  | U60: =IF(Resultats!K52<>"",Resultats!K52,"") ->  | V60: =IF(Resultats!L52<>"",Resultats!L52,"") ->  | AG60: 1235 | AI60: =Y25 -> Irlande du Nord | AJ60: =Y13 -> Albanie | AK60: =Y19 -> Slovaquie | AL60: =Y37 -> Irlande
A61: 48 | B61: 2016-07-03 | C61: 21:00:00 | H61: =IF(OR(I51="",J51=""),"",IF(OR(I51>J51,AND(I51=J51,L51>M51),AND(I51=J51,L51=M51,N51>S51)),H51,IF(OR(I51<J51,AND(I51=J51,L51<M51),AND(I51=J51,L51=M51,N51<S51)),K51,""))) -> France | I61: 5 | J61: 2 | K61: =IF(OR(I55="",J55=""),"",IF(OR(I55>J55,AND(I55=J55,L55>M55),AND(I55=J55,L55=M55,N55>S55)),H55,IF(OR(I55<J55,AND(I55=J55,L55<M55),AND(I55=J55,L55=M55,N55<S55)),K55,""))) -> Islande | T61: =IF(Resultats!J53<>"",Resultats!J53,"") ->  | U61: =IF(Resultats!K53<>"",Resultats!K53,"") ->  | V61: =IF(Resultats!L53<>"",Resultats!L53,"") ->  | AG61: 1236 | AI61: =Y25 -> Irlande du Nord | AJ61: =Y13 -> Albanie | AK61: =Y19 -> Slovaquie | AL61: =Y43 -> Portugal
AG62: 1245 | AI62: =Y31 -> Turquie | AJ62: =Y13 -> Albanie | AK62: =Y19 -> Slovaquie | AL62: =Y37 -> Irlande
A63: N°: | B63: Date et heure | H63: Demi finales (fin 90') | L63: ap. prlg. | N63: Vainqueur (X) | T63: COTES (1N2) | AG63: 1246 | AI63: =Y31 -> Turquie | AJ63: =Y13 -> Albanie | AK63: =Y19 -> Slovaquie | AL63: =Y43 -> Portugal | CB63: GROUPE F | CH63: GROUPE F
A64: 49 | B64: 2016-07-06 | C64: 21:00:00 | H64: =IF(OR(I58="",J58=""),"",IF(OR(I58>J58,AND(I58=J58,L58>M58),AND(I58=J58,L58=M58,N58>S58)),H58,IF(OR(I58<J58,AND(I58=J58,L58<M58),AND(I58=J58,L58=M58,N58<S58)),K58,""))) -> Portugal | I64: 2 | J64: 0 | K64: =IF(OR(I59="",J59=""),"",IF(OR(I59>J59,AND(I59=J59,L59>M59),AND(I59=J59,L59=M59,N59>S59)),H59,IF(OR(I59<J59,AND(I59=J59,L59<M59),AND(I59=J59,L59=M59,N59<S59)),K59,""))) -> Pays de Galles | T64: =IF(Resultats!J54<>"",Resultats!J54,"") ->  | U64: =IF(Resultats!K54<>"",Resultats!K54,"") ->  | V64: =IF(Resultats!L54<>"",Resultats!L54,"") ->  | AG64: 1256 | AI64: =Y37 -> Irlande | AJ64: =Y13 -> Albanie | AK64: =Y19 -> Slovaquie | AL64: =Y43 -> Portugal
A65: 50 | B65: 2016-07-07 | C65: 21:00:00 | H65: =IF(OR(I60="",J60=""),"",IF(OR(I60>J60,AND(I60=J60,L60>M60),AND(I60=J60,L60=M60,N60>S60)),H60,IF(OR(I60<J60,AND(I60=J60,L60<M60),AND(I60=J60,L60=M60,N60<S60)),K60,""))) -> Allemagne | I65: 0 | J65: 2 | K65: =IF(OR(I61="",J61=""),"",IF(OR(I61>J61,AND(I61=J61,L61>M61),AND(I61=J61,L61=M61,N61>S61)),H61,IF(OR(I61<J61,AND(I61=J61,L61<M61),AND(I61=J61,L61=M61,N61<S61)),K61,""))) -> France | T65: =IF(Resultats!J55<>"",Resultats!J55,"") ->  | U65: =IF(Resultats!K55<>"",Resultats!K55,"") ->  | V65: =IF(Resultats!L55<>"",Resultats!L55,"") ->  | AG65: 1345 | AI65: =Y25 -> Irlande du Nord | AJ65: =Y31 -> Turquie | AK65: =Y13 -> Albanie | AL65: =Y37 -> Irlande | CB65: 42535 | CC65: 0.875 | CD65: 1 | CE65: 1 | CF65: 0 | CG65: 0 | CH65: Portugal | CI65: 1 | CJ65: 1 | CK65: Islande
AG66: 1346 | AI66: =Y25 -> Irlande du Nord | AJ66: =Y31 -> Turquie | AK66: =Y13 -> Albanie | AL66: =Y43 -> Portugal | CB66: 42535 | CC66: 0.75 | CD66: 1 | CE66: 0 | CF66: 1 | CG66: 0 | CH66: Autriche | CI66: 0 | CJ66: 2 | CK66: Hongrie
A67: N°: | B67: Date et heure | H67: Finale (fin 90') | L67: ap. prlg. | N67: Vainqueur (X) | T67: COTES (1N2) | AG67: 1356 | AI67: =Y25 -> Irlande du Nord | AJ67: =Y13 -> Albanie | AK67: =Y43 -> Portugal | AL67: =Y37 -> Irlande | CB67: 42539 | CC67: 0.75 | CD67: 1 | CE67: 1 | CF67: 0 | CG67: 0 | CH67: Islande | CI67: 1 | CJ67: 1 | CK67: Hongrie
A68: 51 | B68: 2016-07-10 | C68: 21:00:00 | H68: =IF(OR(I64="",J64=""),"",IF(OR(I64>J64,AND(I64=J64,L64>M64),AND(I64=J64,L64=M64,N64>S64)),H64,IF(OR(I64<J64,AND(I64=J64,L64<M64),AND(I64=J64,L64=M64,N64<S64)),K64,""))) -> Portugal | K68: =IF(OR(I65="",J65=""),"",IF(OR(I65>J65,AND(I65=J65,L65>M65),AND(I65=J65,L65=M65,N65>S65)),H65,IF(OR(I65<J65,AND(I65=J65,L65<M65),AND(I65=J65,L65=M65,N65<S65)),K65,""))) -> France | T68: =IF(Resultats!J56<>"",Resultats!J56,"") ->  | U68: =IF(Resultats!K56<>"",Resultats!K56,"") ->  | V68: =IF(Resultats!L56<>"",Resultats!L56,"") ->  | AG68: 1456 | AI68: =Y31 -> Turquie | AJ68: =Y13 -> Albanie | AK68: =Y43 -> Portugal | AL68: =Y37 -> Irlande | CB68: 42539 | CC68: 0.875 | CD68: 1 | CE68: 0 | CF68: 1 | CG68: 0 | CH68: Portugal | CI68: 0 | CJ68: 0 | CK68: Autriche
AG69: 2345 | AI69: =Y25 -> Irlande du Nord | AJ69: =Y31 -> Turquie | AK69: =Y19 -> Slovaquie | AL69: =Y37 -> Irlande | CB69: 42543 | CC69: 0.75 | CD69: 1 | CE69: 0 | CF69: 1 | CG69: 0 | CH69: Hongrie | CI69: 3 | CJ69: 3 | CK69: Portugal
B70: Podium | AG70: 2346 | AI70: =Y25 -> Irlande du Nord | AJ70: =Y31 -> Turquie | AK70: =Y19 -> Slovaquie | AL70: =Y43 -> Portugal | CB70: 42543 | CC70: 0.75 | CD70: 1 | CE70: 1 | CF70: 0 | CG70: 0 | CH70: Islande | CI70: 2 | CJ70: 1 | CK70: Autriche
A71: 1er | B71: =IF(OR(I68="",J68=""),"",IF(OR(I68>J68,AND(I68=J68,L68>M68),AND(I68=J68,L68=M68,N68>S68)),H68,IF(OR(I68<J68,AND(I68=J68,L68<M68),AND(I68=J68,L68=M68,N68<S68)),K68,""))) ->  | AG71: 2356 | AI71: =Y37 -> Irlande | AJ71: =Y25 -> Irlande du Nord | AK71: =Y19 -> Slovaquie | AL71: =Y43 -> Portugal
A72: 2ème | B72: =IF(OR(I68="",J68=""),"",IF(OR(I68<J68,AND(I68=J68,L68<M68),AND(I68=J68,L68=M68,N68<S68)),H68,IF(OR(I68>J68,AND(I68=J68,L68>M68),AND(I68=J68,L68=M68,N68>S68)),K68,""))) ->  | AG72: 2456 | AI72: =Y37 -> Irlande | AJ72: =Y31 -> Turquie | AK72: =Y19 -> Slovaquie | AL72: =Y43 -> Portugal
AG73: 3456 | AI73: =Y25 -> Irlande du Nord | AJ73: =Y31 -> Turquie | AK73: =Y43 -> Portugal | AL73: =Y37 -> Irlande

Sheet Resultats
E2: Score | G2: Prolongations | I2: Winner | J2: Cotes
J3: 1 | K3: N | L3: 2 | M3: G
A5: 2
A6: 3 | B6: 1 | C6: France | D6: Roumanie | E6: =IF(Matchs!I10<>"",Matchs!I10,"") -> 2 | F6: =IF(Matchs!J10<>"",Matchs!J10,"") -> 1 | J6: 1.285555556 | K6: 4.983333333 | L6: 13.44444444 | M6: =IF(OR(E6="",F6=""),"",IF(E6>F6,J6,IF(E6=F6,K6,L6))) -> 1.285555556
A7: 4 | B7: 2 | C7: Albanie | D7: Suisse | E7: =IF(Matchs!I11<>"",Matchs!I11,"") -> 0 | F7: =IF(Matchs!J11<>"",Matchs!J11,"") -> 1 | J7: 5.511111111 | K7: 3.327777778 | L7: 1.74 | M7: =IF(OR(E7="",F7=""),"",IF(E7>F7,J7,IF(E7=F7,K7,L7))) -> 1.74
A8: 5 | B8: 3 | C8: Pays de Galles | D8: Slovaquie | E8: =IF(Matchs!I12<>"",Matchs!I12,"") -> 2 | F8: =IF(Matchs!J12<>"",Matchs!J12,"") -> 1 | J8: 2.651111111 | K8: 2.983333333 | L8: 2.888888889 | M8: 2.651111111
A9: 6 | B9: 4 | C9: Angleterre | D9: Russie | E9: =IF(Matchs!I13<>"",Matchs!I13,"") -> 1 | F9: =IF(Matchs!J13<>"",Matchs!J13,"") -> 1 | J9: 1.875555556 | K9: 3.3 | L9: 4.492222222 | M9: 3.3
A10: 7 | B10: 5 | C10: Turquie | D10: Croatie | E10: =IF(Matchs!I14<>"",Matchs!I14,"") -> 0 | F10: =IF(Matchs!J14<>"",Matchs!J14,"") -> 1 | J10: 3.533333333 | K10: 3.172222222 | L10: 2.166666667 | M10: 2.166666667
A11: 8 | B11: 6 | C11: Pologne | D11: Irlande du Nord | E11: =IF(Matchs!I15<>"",Matchs!I15,"") -> 1 | F11: =IF(Matchs!J15<>"",Matchs!J15,"") -> 0 | J11: 1.67 | K11: 3.516666667 | L11: 5.711111111 | M11: 1.67
A12: 9 | B12: 7 | C12: Allemagne | D12: Ukraine | E12: =IF(Matchs!I16<>"",Matchs!I16,"") -> 2 | F12: =IF(Matchs!J16<>"",Matchs!J16,"") -> 0 | J12: 1.508888889 | K12: 4.111111111 | L12: 6.944444444 | M12: 1.508888889
A13: 10 | B13: 8 | C13: Espagne | D13: Rép. Tchèque | E13: =IF(Matchs!I17<>"",Matchs!I17,"") -> 1 | F13: =IF(Matchs!J17<>"",Matchs!J17,"") -> 0 | J13: 1.45 | K13: 4.044444444 | L13: 7.827777778 | M13: =IF(OR(E13="",F13=""),"",IF(E13>F13,J13,IF(E13=F13,K13,L13))) -> 1.45
A14: 11 | B14: 9 | C14: Irlande | D14: Suède | E14: =IF(Matchs!I18<>"",Matchs!I18,"") -> 1 | F14: =IF(Matchs!J18<>"",Matchs!J18,"") -> 1 | J14: 3.172222222 | K14: 3.044444444 | L14: 2.428888889 | M14: =IF(OR(E14="",F14=""),"",IF(E14>F14,J14,IF(E14=F14,K14,L14))) -> 3.044444444
A15: 12 | B15: 10 | C15: Belgique | D15: Italie | E15: =IF(Matchs!I19<>"",Matchs!I19,"") -> 0 | F15: =IF(Matchs!J19<>"",Matchs!J19,"") -> 2 | J15: 2.498888889 | K15: 3.055555556 | L15: 3.022222222 | M15: 3.022222222
A16: 13 | B16: 11 | C16: Autriche | D16: Hongrie | E16: =IF(Matchs!I20<>"",Matchs!I20,"") -> 0 | F16: =IF(Matchs!J20<>"",Matchs!J20,"") -> 2 | J16: 1.705555556 | K16: 3.5 | L16: 5.366666667 | M16: 5.366666667
A17: 14 | B17: 12 | C17: Portugal | D17: Islande | E17: =IF(Matchs!I21<>"",Matchs!I21,"") -> 1 | F17: =IF(Matchs!J21<>"",Matchs!J21,"") -> 1 | J17: 1.62 | K17: 3.6 | L17: 6.2 | M17: =IF(OR(E17="",F17=""),"",IF(E17>F17,J17,IF(E17=F17,K17,L17))) -> 3.6
A18: 15 | B18: 13 | C18: Russie | D18: Slovaquie | E18: =IF(Matchs!I22<>"",Matchs!I22,"") -> 1 | F18: =IF(Matchs!J22<>"",Matchs!J22,"") -> 2 | J18: 1.944444444 | K18: 2 | L18: 3 | M18: 3
A19: 16 | B19: 14 | C19: Roumanie | D19: Suisse | E19: =IF(Matchs!I23<>"",Matchs!I23,"") -> 1 | F19: =IF(Matchs!J23<>"",Matchs!J23,"") -> 1 | J19: 3.616049383 | K19: 3.219753086 | L19: 2.249876543 | M19: 3.219753086
A20: 17 | B20: 15 | C20: France | D20: Albanie | E20: =IF(Matchs!I24<>"",Matchs!I24,"") -> 2 | F20: =IF(Matchs!J24<>"",Matchs!J24,"") -> 0 | J20: 1.455116598 | K20: 2 | L20: 3 | M20: 1.455116598
A21: 18 | B21: 16 | C21: Angleterre | D21: Pays de Galles | E21: =IF(Matchs!I25<>"",Matchs!I25,"") -> 2 | F21: =IF(Matchs!J25<>"",Matchs!J25,"") -> 1 | J21: 1.593901844 | K21: 2 | L21: 3 | M21: 1.593901844
A22: 19 | B22: 17 | C22: Ukraine | D22: Irlande du Nord | E22: =IF(Matchs!I26<>"",Matchs!I26,"") -> 0 | F22: =IF(Matchs!J26<>"",Matchs!J26,"") -> 2 | J22: 1.714877983 | K22: 2 | L22: 3 | M22: =IF(OR(E22="",F22=""),"",IF(E22>F22,J22,IF(E22=F22,K22,L22))) -> 3
A23: 20 | B23: 18 | C23: Allemagne | D23: Pologne | E23: =IF(Matchs!I27<>"",Matchs!I27,"") -> 0 | F23: =IF(Matchs!J27<>"",Matchs!J27,"") -> 0 | J23: 1.576097554 | K23: 2 | L23: 3 | M23: 2
A24: 21 | B24: 19 | C24: Italie | D24: Suède | E24: =IF(Matchs!I28<>"",Matchs!I28,"") -> 1 | F24: =IF(Matchs!J28<>"",Matchs!J28,"") -> 0 | J24: 1.897344173 | K24: 2 | L24: 3 | M24: =IF(OR(E24="",F24=""),"",IF(E24>F24,J24,IF(E24=F24,K24,L24))) -> 1.897344173
A25: 22 | B25: 20 | C25: Rép. Tchèque | D25: Croatie | E25: =IF(Matchs!I29<>"",Matchs!I29,"") -> 2 | F25: =IF(Matchs!J29<>"",Matchs!J29,"") -> 2 | J25: 3.166371575 | K25: 3.202357307 | L25: 2.415658464 | M25: =IF(OR(E25="",F25=""),"",IF(E25>F25,J25,IF(E25=F25,K25,L25))) -> 3.202357307
A26: 23 | B26: 21 | C26: Espagne | D26: Turquie | E26: =IF(Matchs!I30<>"",Matchs!I30,"") -> 3 | F26: =IF(Matchs!J30<>"",Matchs!J30,"") -> 0 | J26: 1.691819064 | K26: 2 | L26: 3 | M26: 1.691819064
A27: 24 | B27: 22 | C27: Belgique | D27: Irlande | E27: =IF(Matchs!I31<>"",Matchs!I31,"") -> 3 | F27: =IF(Matchs!J31<>"",Matchs!J31,"") -> 0 | J27: 1.579091007 | K27: 2 | L27: 3 | M27: 1.579091007
A28: 25 | B28: 23 | C28: Islande | D28: Hongrie | E28: =IF(Matchs!I32<>"",Matchs!I32,"") -> 1 | F28: =IF(Matchs!J32<>"",Matchs!J32,"") -> 1 | J28: 2.209899001 | K28: 3.210085538 | L28: 3.457634648 | M28: =IF(OR(E28="",F28=""),"",IF(E28>F28,J28,IF(E28=F28,K28,L28))) -> 3.210085538
A29: 26 | B29: 24 | C29: Portugal | D29: Autriche | E29: =IF(Matchs!I33<>"",Matchs!I33,"") -> 0 | F29: =IF(Matchs!J33<>"",Matchs!J33,"") -> 0 | J29: 2.145544333 | K29: 3.251120615 | L29: 3.378626072 | M29: 3.251120615
A30: 27 | B30: 25 | C30: Suisse | D30: France | E30: =IF(Matchs!I34<>"",Matchs!I34,"") -> 0 | F30: =IF(Matchs!J34<>"",Matchs!J34,"") -> 0 | J30: 3 | K30: 2 | L30: 1.875538593 | M30: 2
A31: 28 | B31: 26 | C31: Roumanie | D31: Albanie | E31: =IF(Matchs!I35<>"",Matchs!I35,"") -> 0 | F31: =IF(Matchs!J35<>"",Matchs!J35,"") -> 1 | J31: 1.969504926 | K31: 3.300124513 | L31: 3.819847341 | M31: =IF(OR(E31="",F31=""),"",IF(E31>F31,J31,IF(E31=F31,K31,L31))) -> 3.819847341
A32: 29 | B32: 27 | C32: Slovaquie | D32: Angleterre | E32: =IF(Matchs!I36<>"",Matchs!I36,"") -> 0 | F32: =IF(Matchs!J36<>"",Matchs!J36,"") -> 0 | J32: 3 | K32: 2 | L32: 1.772043686 | M32: 2
A33: 30 | B33: 28 | C33: Russie | D33: Pays de Galles | E33: =IF(Matchs!I37<>"",Matchs!I37,"") -> 0 | F33: =IF(Matchs!J37<>"",Matchs!J37,"") -> 3 | J33: 2.470734629 | K33: 3.256174377 | L33: 3.208393177 | M33: 3.208393177
A34: 31 | B34: 29 | C34: Irlande du Nord | D34: Allemagne | E34: =IF(Matchs!I38<>"",Matchs!I38,"") -> 0 | F34: =IF(Matchs!J38<>"",Matchs!J38,"") -> 1 | J34: 3 | K34: 2 | L34: 1.292449298 | M34: =IF(OR(E34="",F34=""),"",IF(E34>F34,J34,IF(E34=F34,K34,L34))) -> 1.292449298
A35: 32 | B35: 30 | C35: Ukraine | D35: Pologne | E35: =IF(Matchs!I39<>"",Matchs!I39,"") -> 0 | F35: =IF(Matchs!J39<>"",Matchs!J39,"") -> 1 | J35: 3.648176591 | K35: 3.438417249 | L35: 2.374716589 | M35: 2.374716589
A36: 33 | B36: 31 | C36: Croatie | D36: Espagne | E36: =IF(Matchs!I40<>"",Matchs!I40,"") -> 2 | F36: =IF(Matchs!J40<>"",Matchs!J40,"") -> 1 | J36: 3 | K36: 2 | L36: 1.960524065 | M36: 3
A37: 34 | B37: 32 | C37: Rép. Tchèque | D37: Turquie | E37: =IF(Matchs!I41<>"",Matchs!I41,"") -> 0 | F37: =IF(Matchs!J41<>"",Matchs!J41,"") -> 2 | J37: 2.774051563 | K37: 3.196770583 | L37: 2.574502674 | M37: =IF(OR(E37="",F37=""),"",IF(E37>F37,J37,IF(E37=F37,K37,L37))) -> 2.574502674
A38: 35 | B38: 33 | C38: Hongrie | D38: Portugal | E38: =IF(Matchs!I42<>"",Matchs!I42,"") -> 3 | F38: =IF(Matchs!J42<>"",Matchs!J42,"") -> 3 | J38: 3 | K38: 2 | L38: 1.661611408 | M38: 2
A39: 36 | B39: 34 | C39: Islande | D39: Autriche | E39: =IF(Matchs!I43<>"",Matchs!I43,"") -> 2 | F39: =IF(Matchs!J43<>"",Matchs!J43,"") -> 1 | J39: 3 | K39: 2 | L39: 1.956845712 | M39: 3
A40: 37 | B40: 35 | C40: Suède | D40: Belgique | E40: =IF(Matchs!I44<>"",Matchs!I44,"") -> 0 | F40: =IF(Matchs!J44<>"",Matchs!J44,"") -> 1 | J40: 3 | K40: 2 | L40: 2.067615379 | M40: =IF(OR(E40="",F40=""),"",IF(E40>F40,J40,IF(E40=F40,K40,L40))) -> 2.067615379
A41: 38 | B41: 36 | C41: Italie | D41: Irlande | E41: =IF(Matchs!I45<>"",Matchs!I45,"") -> 0 | F41: =IF(Matchs!J45<>"",Matchs!J45,"") -> 1 | J41: 1.949456861 | K41: 2 | L41: 3 | M41: =IF(OR(E41="",F41=""),"",IF(E41>F41,J41,IF(E41=F41,K41,L41))) -> 3
A42: 39 | B42: H1 | C42: =E57 -> Suisse | D42: =E58 -> Pologne | E42: =IF(Matchs!I48<>"",Matchs!I48,"") -> 1 | F42: =IF(Matchs!J48<>"",Matchs!J48,"") -> 1 | G42: =IF(AND(Matchs!I48<>"",Matchs!I48=Matchs!J48),Matchs!L48,"") -> 1 | H42: =IF(AND(Matchs!I48<>"",Matchs!I48=Matchs!J48),Matchs!M48,"") -> 1 | I42: =IF(AND(G42<>"",G42<>H42),"",IF(G42<>H42,D42,IF(AND(ISBLANK(Matchs!N48),ISBLANK(Matchs!S48)),"",IF(Matchs!N48="x",C42,D42)))) -> Pologne | J42: 3.05 | K42: 2.91 | L42: 2.58 | M42: =IF(OR(E42="",F42="",J42=""),"",IF(E42>F42,J42,IF(E42=F42,K42,L42))) -> 2.91
A43: 40 | B43: H2 | C43: =E61 -> Croatie | D43: =E62 -> Portugal | E43: =IF(Matchs!I50<>"",Matchs!I50,"") -> 0 | F43: =IF(Matchs!J50<>"",Matchs!J50,"") -> 0 | G43: =IF(AND(Matchs!I50<>"",Matchs!I50=Matchs!J50),Matchs!L50,"") -> 0 | H43: =IF(AND(Matchs!I50<>"",Matchs!I50=Matchs!J50),Matchs!M50,"") -> 1 | I43: =IF(AND(G43<>"",G43<>H43),"",IF(G43<>H43,D43,IF(AND(ISBLANK(Matchs!N50),ISBLANK(Matchs!S50)),"",IF(Matchs!N50="x",C43,D43)))) ->  | J43: 2.46 | K43: 2.91 | L43: 2.85 | M43: 2.91
A44: 41 | B44: H3 | C44: =E59 -> Pays de Galles | D44: =E60 -> Irlande du Nord | E44: =IF(Matchs!I49<>"",Matchs!I49,"") -> 1 | F44: =IF(Matchs!J49<>"",Matchs!J49,"") -> 0 | G44: =IF(AND(Matchs!I49<>"",Matchs!I49=Matchs!J49),Matchs!L49,"") ->  | H44: =IF(AND(Matchs!I49<>"",Matchs!I49=Matchs!J49),Matchs!M49,"") ->  | I44: =IF(AND(G44<>"",G44<>H44),"",IF(G44<>H44,D44,IF(AND(ISBLANK(Matchs!N49),ISBLANK(Matchs!S49)),"",IF(Matchs!N49="x",C44,D44)))) ->  | J44: 1.89 | K44: 2.75 | L44: 3 | M44: 1.89
A45: 42 | B45: H4 | C45: =E69 -> Italie | D45: =E70 -> Espagne | E45: =IF(Matchs!I54<>"",Matchs!I54,"") -> 2 | F45: =IF(Matchs!J54<>"",Matchs!J54,"") -> 0 | G45: =IF(AND(Matchs!I54<>"",Matchs!I54=Matchs!J54),Matchs!L54,"") ->  | H45: =IF(AND(Matchs!I54<>"",Matchs!I54=Matchs!J54),Matchs!M54,"") ->  | I45: =IF(AND(G45<>"",G45<>H45),"",IF(G45<>H45,D45,IF(AND(ISBLANK(Matchs!N54),ISBLANK(Matchs!S54)),"",IF(Matchs!N54="x",C45,D45)))) ->  | J45: 3 | K45: 2.94 | L45: 2.12 | M45: 3
A46: 43 | B46: H5 | C46: =E65 -> Allemagne | D46: =E66 -> Slovaquie | E46: =IF(Matchs!I52<>"",Matchs!I52,"") -> 3 | F46: =IF(Matchs!J52<>"",Matchs!J52,"") -> 0 | G46: =IF(AND(Matchs!I52<>"",Matchs!I52=Matchs!J52),Matchs!L52,"") ->  | H46: =IF(AND(Matchs!I52<>"",Matchs!I52=Matchs!J52),Matchs!M52,"") ->  | I46: =IF(AND(G46<>"",G46<>H46),"",IF(G46<>H46,D46,IF(AND(ISBLANK(Matchs!N52),ISBLANK(Matchs!S52)),"",IF(Matchs!N52="x",C46,D46)))) ->  | J46: 1.38 | K46: 2 | L46: 3 | M46: =IF(OR(E46="",F46="",J46=""),"",IF(E46>F46,J46,IF(E46=F46,K46,L46))) -> 1.38
A47: 44 | B47: H6 | C47: =E63 -> France | D47: =E64 -> Irlande | E47: =IF(Matchs!I51<>"",Matchs!I51,"") -> 2 | F47: =IF(Matchs!J51<>"",Matchs!J51,"") -> 1 | G47: =IF(AND(Matchs!I51<>"",Matchs!I51=Matchs!J51),Matchs!L51,"") ->  | H47: =IF(AND(Matchs!I51<>"",Matchs!I51=Matchs!J51),Matchs!M51,"") ->  | I47: =IF(AND(G47<>"",G47<>H47),"",IF(G47<>H47,D47,IF(AND(ISBLANK(Matchs!N51),ISBLANK(Matchs!S51)),"",IF(Matchs!N51="x",C47,D47)))) ->  | J47: 1.44 | K47: 2 | L47: 3 | M47: =IF(OR(E47="",F47="",J47=""),"",IF(E47>F47,J47,IF(E47=F47,K47,L47))) -> 1.44
A48: 45 | B48: H7 | C48: =+E67 -> Hongrie | D48: =+E68 -> Belgique | E48: =IF(Matchs!I53<>"",Matchs!I53,"") -> 0 | F48: =IF(Matchs!J53<>"",Matchs!J53,"") -> 4 | G48: =IF(AND(Matchs!I53<>"",Matchs!I53=Matchs!J53),Matchs!L53,"") ->  | H48: =IF(AND(Matchs!I53<>"",Matchs!I53=Matchs!J53),Matchs!M53,"") ->  | I48: =IF(AND(G48<>"",G48<>H48),"",IF(G48<>H48,D48,IF(AND(ISBLANK(Matchs!N53),ISBLANK(Matchs!S53)),"",IF(Matchs!N53="x",C48,D48)))) ->  | J48: 3 | K48: 2 | L48: 1.57 | M48: 1.57
A49: 46 | B49: H8 | C49: =E71 -> Angleterre | D49: =E72 -> Islande | E49: =IF(Matchs!I55<>"",Matchs!I55,"") -> 1 | F49: =IF(Matchs!J55<>"",Matchs!J55,"") -> 2 | G49: =IF(AND(Matchs!I55<>"",Matchs!I55=Matchs!J55),Matchs!L55,"") ->  | H49: =IF(AND(Matchs!I55<>"",Matchs!I55=Matchs!J55),Matchs!M55,"") ->  | I49: =IF(AND(G49<>"",G49<>H49),"",IF(G49<>H49,D49,IF(AND(ISBLANK(Matchs!N55),ISBLANK(Matchs!S55)),"",IF(Matchs!N55="x",C49,D49)))) ->  | J49: 1.5 | K49: 2 | L49: 3 | M49: 3
A50: 47 | B50: Q1 | C50: =E73 -> Pologne | D50: =E74 -> Portugal | E50: =IF(Matchs!I58<>"",Matchs!I58,"") -> 1 | F50: =IF(Matchs!J58<>"",Matchs!J58,"") -> 1 | G50: =IF(AND(Matchs!I58<>"",Matchs!I58=Matchs!J58),Matchs!L58,"") -> 1 | H50: =IF(AND(Matchs!I58<>"",Matchs!I58=Matchs!J58),Matchs!M58,"") -> 1 | I50: =IF(AND(G50<>"",G50<>H50),"",IF(G50<>H50,D50,IF(AND(ISBLANK(Matchs!N58),ISBLANK(Matchs!S58)),"",IF(Matchs!N58="x",C50,D50)))) -> Portugal
A51: 48 | B51: Q2 | C51: =E75 -> Pays de Galles | D51: =E76 -> Belgique | E51: =IF(Matchs!I59<>"",Matchs!I59,"") -> 3 | F51: =IF(Matchs!J59<>"",Matchs!J59,"") -> 1 | G51: =IF(AND(Matchs!I59<>"",Matchs!I59=Matchs!J59),Matchs!L59,"") ->  | H51: =IF(AND(Matchs!I59<>"",Matchs!I59=Matchs!J59),Matchs!M59,"") ->  | I51: =IF(AND(G51<>"",G51<>H51),"",IF(G51<>H51,D51,IF(AND(ISBLANK(Matchs!N59),ISBLANK(Matchs!S59)),"",IF(Matchs!N59="x",C51,D51)))) -> 
A52: 49 | B52: Q3 | C52: =E77 -> Allemagne | D52: =E78 -> Italie | E52: =IF(Matchs!I60<>"",Matchs!I60,"") -> 1 | F52: =IF(Matchs!J60<>"",Matchs!J60,"") -> 1 | G52: =IF(AND(Matchs!I60<>"",Matchs!I60=Matchs!J60),Matchs!L60,"") -> 1 | H52: =IF(AND(Matchs!I60<>"",Matchs!I60=Matchs!J60),Matchs!M60,"") -> 1 | I52: =IF(AND(G52<>"",G52<>H52),"",IF(G52<>H52,D52,IF(AND(ISBLANK(Matchs!N60),ISBLANK(Matchs!S60)),"",IF(Matchs!N60="x",C52,D52)))) -> Allemagne
A53: 50 | B53: Q4 | C53: =E79 -> France | D53: =E80 -> Islande | E53: =IF(Matchs!I61<>"",Matchs!I61,"") -> 5 | F53: =IF(Matchs!J61<>"",Matchs!J61,"") -> 2 | G53: =IF(AND(Matchs!I61<>"",Matchs!I61=Matchs!J61),Matchs!L61,"") ->  | H53: =IF(AND(Matchs!I61<>"",Matchs!I61=Matchs!J61),Matchs!M61,"") ->  | I53: =IF(AND(G53<>"",G53<>H53),"",IF(G53<>H53,D53,IF(AND(ISBLANK(Matchs!N61),ISBLANK(Matchs!S61)),"",IF(Matchs!N61="x",C53,D53)))) -> 
A54: 51 | B54: D1 | C54: =E81 -> Portugal | D54: =E82 -> Pays de Galles | E54: =IF(Matchs!I64<>"",Matchs!I64,"") -> 2 | F54: =IF(Matchs!J64<>"",Matchs!J64,"") -> 0 | G54: =IF(AND(Matchs!I64<>"",Matchs!I64=Matchs!J64),Matchs!L64,"") ->  | H54: =IF(AND(Matchs!I64<>"",Matchs!I64=Matchs!J64),Matchs!M64,"") ->  | I54: =IF(AND(G54<>"",G54<>H54),"",IF(G54<>H54,D54,IF(AND(ISBLANK(Matchs!N64),ISBLANK(Matchs!S64)),"",IF(Matchs!N64="x",C54,D54)))) -> 
A55: 52 | B55: D2 | C55: =E83 -> Allemagne | D55: =E84 -> France | E55: =IF(Matchs!I65<>"",Matchs!I65,"") -> 0 | F55: =IF(Matchs!J65<>"",Matchs!J65,"") -> 2 | G55: =IF(AND(Matchs!I65<>"",Matchs!I65=Matchs!J65),Matchs!L65,"") ->  | H55: =IF(AND(Matchs!I65<>"",Matchs!I65=Matchs!J65),Matchs!M65,"") ->  | I55: =IF(AND(G55<>"",G55<>H55),"",IF(G55<>H55,D55,IF(AND(ISBLANK(Matchs!N65),ISBLANK(Matchs!S65)),"",IF(Matchs!N65="x",C55,D55)))) -> 
A56: 53 | B56: F | C56: =E85 -> Portugal | D56: =E86 -> France | E56: =IF(Matchs!I68<>"",Matchs!I68,"") ->  | F56: =IF(Matchs!J68<>"",Matchs!J68,"") ->  | G56: =IF(AND(Matchs!I68<>"",Matchs!I68=Matchs!J68),Matchs!L68,"") ->  | H56: =IF(AND(Matchs!I68<>"",Matchs!I68=Matchs!J68),Matchs!M68,"") ->  | I56: =IF(AND(G56<>"",G56<>H56),"",IF(G56<>H56,D56,IF(AND(ISBLANK(Matchs!N68),ISBLANK(Matchs!S68)),"",IF(Matchs!N68="x",C56,D56)))) -> 
A57: 54 | B57: H | C57: 8è de Finaliste 1 (5*Cote PTS) | E57: =IF(Huitieme1<>"",Huitieme1,"") -> Suisse | M57: =IF(E57<>"",VLOOKUP(E57,Matchs!$BH$11:$BJ$44,3,FALSE),"") -> 5
A58: 55 | C58: 8è de Finaliste 2 (5*Cote PTS) | E58: =IF(Huitieme2<>"",Huitieme2,"") -> Pologne | M58: =IF(E58<>"",VLOOKUP(E58,Matchs!$BH$11:$BJ$44,3,FALSE),"") -> 2
A59: 56 | C59: 8è de Finaliste 3 (5*Cote PTS) | E59: =IF(Huitieme3<>"",Huitieme3,"") -> Pays de Galles | M59: =IF(E59<>"",VLOOKUP(E59,Matchs!$BH$11:$BJ$44,3,FALSE),"") -> 2
A60: 57 | C60: 8è de Finaliste 4 (5*Cote PTS) | E60: =IF(Huitieme4<>"",Huitieme4,"") -> Irlande du Nord | M60: =IF(E60<>"",VLOOKUP(E60,Matchs!$BH$11:$BJ$44,3,FALSE),"") -> 2.7
A61: 58 | C61: 8è de Finaliste 5 (5*Cote PTS) | E61: =IF(Huitieme5<>"",Huitieme5,"") -> Croatie | M61: =IF(E61<>"",VLOOKUP(E61,Matchs!$BH$11:$BJ$44,3,FALSE),"") -> 8
A62: 59 | C62: 8è de Finaliste 6 (5*Cote PTS) | E62: =IF(Huitieme6<>"",Huitieme6,"") -> Portugal | M62: =IF(E62<>"",VLOOKUP(E62,Matchs!$BH$11:$BJ$44,3,FALSE),"") -> 1
A63: 60 | C63: 8è de Finaliste 7 (5*Cote PTS) | E63: =IF(Huitieme7<>"",Huitieme7,"") -> France | M63: =IF(E63<>"",VLOOKUP(E63,Matchs!$BH$11:$BJ$44,3,FALSE),"") -> 1
A64: 61 | C64: 8è de Finaliste 8 (5*Cote PTS) | E64: =IF(Huitieme8<>"",Huitieme8,"") -> Irlande | M64: =IF(E64<>"",VLOOKUP(E64,Matchs!$BH$11:$BJ$44,3,FALSE),"") -> 1.8
A65: 62 | C65: 8è de Finaliste 9 (5*Cote PTS) | E65: =IF(Huitieme9<>"",Huitieme9,"") -> Allemagne | M65: =IF(E65<>"",VLOOKUP(E65,Matchs!$BH$11:$BJ$44,3,FALSE),"") -> 1.1
A66: 63 | C66: 8è de Finaliste 10 (5*Cote PTS) | E66: =IF(Huitieme10<>"",Huitieme10,"") -> Slovaquie | M66: =IF(E66<>"",VLOOKUP(E66,Matchs!$BH$11:$BJ$44,3,FALSE),"") -> 9
A67: 64 | C67: 8è de Finaliste 11 (5*Cote PTS) | E67: =IF(Huitieme11<>"",Huitieme11,"") -> Hongrie | M67: =IF(E67<>"",VLOOKUP(E67,Matchs!$BH$11:$BJ$44,3,FALSE),"") -> 6
A68: 65 | C68: 8è de Finaliste 12 (5*Cote PTS) | E68: =IF(Huitieme12<>"",Huitieme12,"") -> Belgique | M68: =IF(E68<>"",VLOOKUP(E68,Matchs!$BH$11:$BJ$44,3,FALSE),"") -> 1.1
A69: 66 | C69: 8è de Finaliste 13 (5*Cote PTS) | E69: =IF(Huitieme13<>"",Huitieme13,"") -> Italie | M69: =IF(E69<>"",VLOOKUP(E69,Matchs!$BH$11:$BJ$44,3,FALSE),"") -> 1.5
A70: 67 | C70: 8è de Finaliste 14 (5*Cote PTS) | E70: =IF(Huitieme14<>"",Huitieme14,"") -> Espagne | M70: =IF(E70<>"",VLOOKUP(E70,Matchs!$BH$11:$BJ$44,3,FALSE),"") -> 1.3
A71: 68 | C71: 8è de Finaliste 15 (5*Cote PTS) | E71: =IF(Huitieme15<>"",Huitieme15,"") -> Angleterre | M71: =IF(E71<>"",VLOOKUP(E71,Matchs!$BH$11:$BJ$44,3,FALSE),"") -> 1
A72: 69 | C72: 8è de Finaliste 16 (5*Cote PTS) | E72: =IF(Huitieme16<>"",Huitieme16,"") -> Islande | M72: =IF(E72<>"",VLOOKUP(E72,Matchs!$BH$11:$BJ$44,3,FALSE),"") -> 1.6
A73: 70 | B73: Q | C73: Quart de Finaliste 1 (12PTS) | E73: =IF(Quarts1<>"",Quarts1,"") -> Pologne
A74: 71 | C74: Quart de Finaliste 2 (12PTS) | E74: =IF(Quarts2<>"",Quarts2,"") -> Portugal
A75: 72 | C75: Quart de Finaliste 3 (12PTS) | E75: =IF(Quarts3<>"",Quarts3,"") -> Pays de Galles
A76: 73 | C76: Quart de Finaliste 4 (12PTS) | E76: =IF(Quarts4<>"",Quarts4,"") -> Belgique
A77: 74 | C77: Quart de Finaliste 5 (12PTS) | E77: =IF(Quarts5<>"",Quarts5,"") -> Allemagne
A78: 75 | C78: Quart de Finaliste 6 (12PTS) | E78: =IF(Quarts6<>"",Quarts6,"") -> Italie
A79: 76 | C79: Quart de Finaliste 7 (12PTS) | E79: =IF(Quarts7<>"",Quarts7,"") -> France
A80: 77 | C80: Quart de Finaliste 8 (12PTS) | E80: =IF(Quarts8<>"",Quarts8,"") -> Islande
A81: 78 | B81: D | C81: Demi Finaliste 1 (20PTS) | E81: =IF(Demi1<>"",Demi1,"") -> Portugal
A82: 79 | C82: Demi Finaliste 2 (20PTS) | E82: =IF(Demi2<>"",Demi2,"") -> Pays de Galles
A83: 80 | C83: Demi Finaliste 3 (20PTS) | E83: =IF(Demi3<>"",Demi3,"") -> Allemagne
A84: 81 | C84: Demi Finaliste 4 (20PTS) | E84: =IF(Demi4<>"",Demi4,"") -> France
A85: 82 | B85: F | C85: Finaliste 1 (35PTS) | E85: =IF(Finale1<>"",Finale1,"") -> Portugal
A86: 83 | C86: Finaliste 2 (35PTS) | E86: =IF(Finale2<>"",Finale2,"") -> France
A87: 84 | B87: V | C87: Vainqueur (50PTS) | E87: =IF(Vainqueur<>"",Vainqueur,"") -> 

Sheet Verif
B2: tous joues compt
B3: =SUMPRODUCT((ISNUMBER(Matchs!I10:I45))+(ISNUMBER(Matchs!J10:J45))) -> 72 | C3: tous joues groupes
B4: =SUMPRODUCT((ISNUMBER(Matchs!I48:I55))+(ISNUMBER(Matchs!J48:J55))) -> 16 | C4: tous joués huitiemes
B5: =SUMPRODUCT((ISNUMBER(Matchs!I58:I61))+(ISNUMBER(Matchs!J58:J61))) -> 8 | C5: tous joues quarts
B6: =SUMPRODUCT((ISNUMBER(Matchs!I64:I65))+(ISNUMBER(Matchs!J64:J65))) -> 4 | C6: tous joués demi
B7: =SUMPRODUCT((ISNUMBER(Matchs!I68:I68))+(ISNUMBER(Matchs!J68:J68))) -> 0 | C7: tous joués finale
B8: =SUM(B3:B7) -> 100 | C8: tous joués compet
B16: ALARCON denis
B17: BOUKHELIFA rachid
B18: BOUSSAGUET cyril
B19: BROCHIER martial
B20: CHARRA johanna
B21: COLONEL yoann
B22: COMES herve
B23: CORNU alexis
B24: COUTURIER stéphane
B25: DAGUIER anthony
B26: DHALLUIN michael
B27: DURANTI bernard
B28: ESMINGEAUD thomas
B29: GAILLOT fabrice
B30: GOUBIN alain
B31: GRUFFAZ guillaume
B32: GUIRAO michael
B33: HARLE francois
B34: JELLOULI boul'
B35: LABOISNE sylvain
B36: LAVERDURE jeremy
B37: LE GARLANTEZEC yves
B38: LESAFFRE thierry
B39: LESCUYER mikael
B40: LOPEZ rené
B41: MAHIOUZ larbi
B42: MICHALLON olivier
B43: MILLET alex
B44: MOCHE philippe
B45: REQUENA nico
B46: RIMA heliel
B47: RONI serge
B48: ROUSSE philippe
B49: SONZOGNI christophe
B50: STRIPPOLI andre
B51: VAN NIJNATTEN roberto
B52: VIRY julien
